Name,Sub Group,Service Areas,Expense Type,Narrative,Date,Transaction Number,Amount,Supplier Name,Supplier Ref,Period ,Year
Allerdale Borough Council,10202,Employee Costs,Human Resources Pay Group,Medical Screening,01/03/2017,199169,275.00,ALERE HEALTHCARE CONNECTIONS LTD,A02393,12 +13,2016
Allerdale Borough Council,10202,Employee Costs,Human Resources Pay Group,Medical Screening,01/03/2017,199170,65.00,ALERE HEALTHCARE CONNECTIONS LTD,A02393,12 +13,2016
Allerdale Borough Council,10202,Employee Costs,Human Resources Pay Group,Medical Screening,01/03/2017,199171,295.00,ALERE HEALTHCARE CONNECTIONS LTD,A02393,12 +13,2016
Allerdale Borough Council,10202,Employee Costs,Human Resources Pay Group,Medical Screening,01/03/2017,199172,275.00,ALERE HEALTHCARE CONNECTIONS LTD,A02393,12 +13,2016
Allerdale Borough Council,10202,Employee Costs,Human Resources Pay Group,Medical Screening,01/03/2017,199173,295.00,ALERE HEALTHCARE CONNECTIONS LTD,A02393,12 +13,2016
Allerdale Borough Council,15506,Supplies & Services,KMAG Enhancement Activity,Professional Services,01/03/2017,199174,65.00,Redacted information - included personal information ,A02395,12 +13,2016
Allerdale Borough Council,10202,Employee Costs,Human Resources Pay Group,Medical Screening,01/03/2017,199175,65.00,ALERE HEALTHCARE CONNECTIONS LTD,A02393,12 +13,2016
Allerdale Borough Council,10202,Employee Costs,Human Resources Pay Group,Medical Screening,01/03/2017,199176,65.00,ALERE HEALTHCARE CONNECTIONS LTD,A02393,12 +13,2016
Allerdale Borough Council,10202,Employee Costs,Human Resources Pay Group,Medical Screening,01/03/2017,199177,65.00,ALERE HEALTHCARE CONNECTIONS LTD,A02393,12 +13,2016
Allerdale Borough Council,20113,Third Party Payments,Anti Poverty,Other Agencies,01/03/2017,199178,"2,000.00",ROSEHILL ARTS TRUST LTD,A01372,12 +13,2016
Allerdale Borough Council,15813,Supplies & Services,Finance and Accounting Pay Group,Software Miscellaneous,01/03/2017,199179,"11,752.89",TOTALMOBILE LIMITED,A01712,12 +13,2016
Allerdale Borough Council,14105,Transport,Street Cleansing,"Fuel, Lubricants & Consumables",01/03/2017,199180,75.68,MICHELDEVER TYRE SERVICES T/A P&R AUTOCENTRE,A02368,12 +13,2016
Allerdale Borough Council,10401,Employee Costs,Housing & Health Pay Group,Agency Staff Costs,08/03/2017,199181,193.60,HAYS SPECIALIST RECRUITMENT LTD,A00280,12 +13,2016
Allerdale Borough Council,20150,Third Party Payments,Building Control - Non-Chargeable,General Partnership Service Fees,01/03/2017,199182,200.00,THOMAS ARMSTRONG,C00003,12 +13,2016
Allerdale Borough Council,15811,Supplies & Services,IT Services,Software Maintenance,01/03/2017,199183,"7,010.00",MODERN MINDSET LTD,A01269,12 +13,2016
Allerdale Borough Council,15813,Supplies & Services,IT Services,Software Miscellaneous,08/03/2017,199184,250.00,LANDMARK INFORMATION GROUP LTD,A00813,12 +13,2016
Allerdale Borough Council,20150,Third Party Payments,Footways,General Partnership Service Fees,15/03/2017,199185,926.00,ELECTRICITY NORTH WEST LTD,A00471,12 +13,2016
Allerdale Borough Council,12103,Premises,Coastal Protection and Inland Flooding,Grounds Maintenance,01/03/2017,199186,"2,317.25",JOHN ELLIOTT LIMITED,C00023,12 +13,2016
Allerdale Borough Council,15803,Supplies & Services,IT Costs (Allerdale Only),Hardware Purchase,15/03/2017,199187,59.52,MILLGATE COMPUTER SYSTEMS,A02314,12 +13,2016
Allerdale Borough Council,14101,Transport,Shared IT Services Pay Group,Vehicle Leasing,05/04/2017,199188,199.00,ARNOLD CLARK FINANCE LIMITED,A01781,12 +13,2016
Allerdale Borough Council,14100,Transport,Parking Services Pay Group,Budget-Council Vehicles (Non-capital),01/03/2017,199189,640.54,FCC ENVIRONMENT SERVICES (FOCSA),A00085,12 +13,2016
Allerdale Borough Council,12101,Premises,Public Convenience Cleaning,External Maintenance & Decoration,01/03/2017,199190,434.00,Redacted information - included personal information ,C00008,12 +13,2016
Allerdale Borough Council,12303,Premises,Corporate Property Maintenance,Window Cleaning,01/03/2017,199191,410.00,BORDERBRITE LTD,C00155,12 +13,2016
Allerdale Borough Council,34100,Income,Planning and Development,Budget - Misc Costs Recovered Income,01/03/2017,199192,150.00,Redacted information - included personal information ,M01083,12 +13,2016
Allerdale Borough Council,33112,Income,Planning and Development,Planning Fees Income,15/03/2017,199193,10.00,STORY HOMES LTD,M01054,12 +13,2016
Allerdale Borough Council,15506,Supplies & Services,Legal Services,Professional Services,01/03/2017,199194,"1,000.00",PINSENT MASONS LLP,A00641,12 +13,2016
Allerdale Borough Council,54105,Capital Expenditure,Disabled Facilities Grants,Grants  Private Individuals (Capital),01/03/2017,199195,"1,480.00",FEARON BUILDERS,C00069,12 +13,2016
Allerdale Borough Council,54105,Capital Expenditure,Disabled Facilities Grants,Grants  Private Individuals (Capital),01/03/2017,199196,"2,862.00",MPG SERVICES,X00254,12 +13,2016
Allerdale Borough Council,54105,Capital Expenditure,Disabled Facilities Grants,Grants  Private Individuals (Capital),01/03/2017,199197,"2,312.50",EXPRESS ELEVATORS LTD,A00717,12 +13,2016
Allerdale Borough Council,33113,Income,Building Control - Chargeable,Building Control Fees Income,01/03/2017,199198,805.68,BYROM CLARK ROBERTS LTD,M01084,12 +13,2016
Allerdale Borough Council,15811,Supplies & Services,Parking Services Pay Group,Software Maintenance,01/03/2017,199199,106.43,RELIANCE HIGH-TECH LTD,C00123,12 +13,2016
Allerdale Borough Council,15811,Supplies & Services,Parking Services Pay Group,Software Maintenance,01/03/2017,199200,19.36,RELIANCE HIGH-TECH LTD,C00123,12 +13,2016
Allerdale Borough Council,15401,Supplies & Services,Finance and Accounting Pay Group,General Stationery,01/03/2017,199201,257.52,SAGE (UK) LTD,A01911,12 +13,2016
Allerdale Borough Council,15501,Supplies & Services,Environmental Initiatives,Consultants Fees,08/03/2017,199202,"2,341.85",CONIBEAR DESIGN ASSOCIATES (CDA),A02347,12 +13,2016
Allerdale Borough Council,15502,Supplies & Services,Legal Services,Land Registry Fees,20/03/2017,199203,33.00,HM LAND REGISTRY,A00505,12 +13,2016
Allerdale Borough Council,33112,Income,Planning and Development,Planning Fees Income,01/03/2017,199204,190.00,PM SECURITY ,A02111,12 +13,2016
Allerdale Borough Council,33112,Income,Planning and Development,Planning Fees Income,01/03/2017,199205,172.00,MR C HUNTER,M01085,12 +13,2016
Allerdale Borough Council,15103,Supplies & Services,KMAG Enhancement Activity,Purchase of Materials,01/03/2017,199206,10.20,YORKSHIRE PURCHASING ORGANISATION,A00747,12 +13,2016
Allerdale Borough Council,15550,Supplies & Services,Arts Development,General-Service Related Fees,01/03/2017,199207,700.00,SOUNDWAVE,A00998,12 +13,2016
Allerdale Borough Council,12101,Premises,Corporate Property Maintenance,External Maintenance & Decoration,08/03/2017,199208,"4,657.72",CAPITA - PROPERTY & INFRASTRUCTURE,A00774,12 +13,2016
Allerdale Borough Council,20305,Third Party Payments,Sports & Leisure Centres,Contract Services-Leisure Centres,01/03/2017,199209,"47,748.00",GREENWICH LEISURE LTD (PREV CARLISLE LEISURE),A00136,12 +13,2016
Allerdale Borough Council,20305,Third Party Payments,Maryport Wave,Contract Services-Leisure Centres,01/03/2017,199210,"7,289.00",GREENWICH LEISURE LTD (PREV CARLISLE LEISURE),A00136,12 +13,2016
Allerdale Borough Council,15506,Supplies & Services,Sports Development,Professional Services,01/03/2017,199211,140.00,Redacted information - included personal information ,A02344,12 +13,2016
Allerdale Borough Council,15506,Supplies & Services,Sports Development,Professional Services,01/03/2017,199212,140.00,Redacted information - included personal information ,A02344,12 +13,2016
Allerdale Borough Council,20305,Third Party Payments,Maryport Wave,Contract Services-Leisure Centres,01/03/2017,199213,"7,289.00",GREENWICH LEISURE LTD (PREV CARLISLE LEISURE),A00136,12 +13,2016
Allerdale Borough Council,20305,Third Party Payments,Sports & Leisure Centres,Contract Services-Leisure Centres,01/03/2017,199214,"47,748.00",GREENWICH LEISURE LTD (PREV CARLISLE LEISURE),A00136,12 +13,2016
Allerdale Borough Council,15506,Supplies & Services,Sports Development,Professional Services,01/03/2017,199215,240.00,WRIGHTS SPORT SERVICES,A01482,12 +13,2016
Allerdale Borough Council,15506,Supplies & Services,Sports Development,Professional Services,01/03/2017,199216,105.00,SOLWAY COMMUNITY TECHNOLOGY COLLEGE (SPORTS HALL),M00118,12 +13,2016
Allerdale Borough Council,15506,Supplies & Services,Sports Development,Professional Services,01/03/2017,199217,120.00,WRIGHTS SPORT SERVICES,A01482,12 +13,2016
Allerdale Borough Council,16150,Supplies & Services,Arts Development,General Promotions,01/03/2017,199218,145.83,HALFORDS LTD,A02319,12 +13,2016
Allerdale Borough Council,20305,Third Party Payments,Sports & Leisure Centres,Contract Services-Leisure Centres,01/03/2017,199219,"47,748.00",GREENWICH LEISURE LTD (PREV CARLISLE LEISURE),A00136,12 +13,2016
Allerdale Borough Council,20305,Third Party Payments,Maryport Wave,Contract Services-Leisure Centres,01/03/2017,199220,"7,289.00",GREENWICH LEISURE LTD (PREV CARLISLE LEISURE),A00136,12 +13,2016
Allerdale Borough Council,10401,Employee Costs,Shared IT Services Pay Group,Agency Staff Costs,01/03/2017,199221,472.56,ADECCO RECRUITMENT,A00188,12 +13,2016
Allerdale Borough Council,10401,Employee Costs,Shared IT Services Pay Group,Agency Staff Costs,01/03/2017,199222,501.20,ADECCO RECRUITMENT,A00188,12 +13,2016
Allerdale Borough Council,10401,Employee Costs,Shared IT Services Pay Group,Agency Staff Costs,01/03/2017,199223,207.64,ADECCO RECRUITMENT,A00188,12 +13,2016
Allerdale Borough Council,15600,Supplies & Services,Benefits,Budget-Postal Services,01/03/2017,199224,"1,165.50",ROYAL MAIL LETTERS,X00021,12 +13,2016
Allerdale Borough Council,20301,Third Party Payments,Parks and Grounds Maintenance,Contract Services-Parks & Open Spaces,01/03/2017,199225,"54,739.75",ISS WATERERS LANDSCAPE,C00044,12 +13,2016
Allerdale Borough Council,81602,Balance Sheet,General Fund,Prov-Insurance Excess (Balance Sheet),08/03/2017,199226,"1,118.00",ZURICH MUNICIPAL,A00429,12 +13,2016
Allerdale Borough Council,16350,Supplies & Services,Planning Policy,Miscellaneous Expenses,08/03/2017,199227,18.00,SILLOTH TOWN COUNCIL,A00615,12 +13,2016
Allerdale Borough Council,15501,Supplies & Services,Revenue,Consultants Fees,22/03/2017,199228,200.00,IRRV LANCASTER & CHESHIRE ASSOCIATION,A02349,12 +13,2016
Allerdale Borough Council,15803,Supplies & Services,IT Costs (Allerdale Only),Hardware Purchase,22/03/2017,199229,466.85,MILLGATE COMPUTER SYSTEMS,A02314,12 +13,2016
Allerdale Borough Council,15808,Supplies & Services,IT Services,Computer Consumables,22/03/2017,199230,6.72,MILLGATE COMPUTER SYSTEMS,A02314,12 +13,2016
Allerdale Borough Council,15101,Supplies & Services,Solway Wetlands Project,Equipment Costs,08/03/2017,199231,140.00,RHYTHM AV LTD,A01139,12 +13,2016
Allerdale Borough Council,10401,Employee Costs,Environmental Services Pay Group,Agency Staff Costs,22/03/2017,199232,"2,120.00",PRACTICUS LTD,A02237,12 +13,2016
Allerdale Borough Council,20100,Third Party Payments,Economic Regeneration,Budget-Partnership Services,08/03/2017,199233,"2,500.00",CUMBRIA CC - GENERAL,A00066,12 +13,2016
Allerdale Borough Council,15508,Supplies & Services,Solway Wetlands Project,Subscriptions,08/03/2017,199234,128.00,INSTITUTE FOR OUTDOOR LEARNING,A02075,12 +13,2016
Allerdale Borough Council,16300,Supplies & Services,Communications,Budget-Miscellaneous,22/03/2017,199235,"1,200.00",BIRCHAM DYSON BELL LLP,A02323,12 +13,2016
Allerdale Borough Council,15508,Supplies & Services,Housing Strategic Function,Subscriptions,22/03/2017,199236,"6,000.00",NINIAN SOLUTIONS LTD T/A HUDDLE,A02301,12 +13,2016
Allerdale Borough Council,10601,Employee Costs,Training,External Courses & Seminar Fees,12/04/2017,199237,220.00,UPKEEP TRAINING/ASSET SKILLS TRAINING,A02258,12 +13,2016
Allerdale Borough Council,15301,Supplies & Services,Parking Services Pay Group,Uniforms,15/03/2017,199238,98.80,KELTIC,A00017,12 +13,2016
Allerdale Borough Council,15501,Supplies & Services,Strategic Acquisition Works,Consultants Fees,08/03/2017,199239,"1,840.00",JAMES ANDREW RECRUITMENT SOLUTIONS LTD,A02339,12 +13,2016
Allerdale Borough Council,16302,Supplies & Services,Sports Development,Room Hire,08/03/2017,199240,50.00,ENTRA,A02331,12 +13,2016
Allerdale Borough Council,15501,Supplies & Services,Homelessness,Consultants Fees,08/03/2017,199241,40.00,ORCHARD HOUSE,A00972,12 +13,2016
Allerdale Borough Council,15103,Supplies & Services,Solway Coast AONB Core Funding,Purchase of Materials,20/03/2017,199242,713.80,BARCLAYCARD COMMERCIAL,X00207,12 +13,2016
Allerdale Borough Council,16150,Supplies & Services,Maryport Shop Front Improvements,General Promotions,08/03/2017,199243,900.00,Redacted information - included personal information ,M01086,12 +13,2016
Allerdale Borough Council,16150,Supplies & Services,Maryport Shop Front Improvements,General Promotions,08/03/2017,199244,900.00,Redacted information - included personal information ,M01087,12 +13,2016
Allerdale Borough Council,16150,Supplies & Services,Maryport Shop Front Improvements,General Promotions,08/03/2017,199245,900.00,Redacted information - included personal information ,M01049,12 +13,2016
Allerdale Borough Council,15502,Supplies & Services,Legal Services,Land Registry Fees,20/03/2017,199246,60.00,HM LAND REGISTRY ,A00505,12 +13,2016
Allerdale Borough Council,15502,Supplies & Services,Revenue,Land Registry Fees,20/03/2017,199247,9.00,HM LAND REGISTRY,A00505,12 +13,2016
Allerdale Borough Council,15808,Supplies & Services,IT Costs (Allerdale Only),Computer Consumables,20/03/2017,199248,761.74,BARCLAYCARD COMMERCIAL,X00207,12 +13,2016
Allerdale Borough Council,21150,Transfer Payments,Festivals & Events,General Grants,08/03/2017,199249,177.00,KESWICK TOWN COUNCIL,A00253,12 +13,2016
Allerdale Borough Council,20101,Third Party Payments,Recycling,Cleansing Contract,08/03/2017,199250,724.71,CUMBRIA WASTE MANAGEMENT LTD,A01304,12 +13,2016
Allerdale Borough Council,20101,Third Party Payments,Recycling,Cleansing Contract,08/03/2017,199251,240.72,CUMBRIA WASTE MANAGEMENT LTD,A01304,12 +13,2016
Allerdale Borough Council,20101,Third Party Payments,Recycling,Cleansing Contract,08/03/2017,199252,"3,047.35",CUMBRIA WASTE MANAGEMENT LTD,A01304,12 +13,2016
Allerdale Borough Council,15100,Supplies & Services,Animal Welfare,"Budget-Equipment, Furniture & Materials",08/03/2017,199253,"1,200.00",BROXAP LIMITED,C00048,12 +13,2016
Allerdale Borough Council,20101,Third Party Payments,Recycling,Cleansing Contract,08/03/2017,199254,"2,743.50",CUMBRIA WASTE MANAGEMENT LTD,A01304,12 +13,2016
Allerdale Borough Council,20101,Third Party Payments,Recycling,Cleansing Contract,08/03/2017,199255,900.98,CUMBRIA WASTE MANAGEMENT LTD,A01304,12 +13,2016
Allerdale Borough Council,20101,Third Party Payments,Recycling,Cleansing Contract,08/03/2017,199256,492.96,CUMBRIA WASTE MANAGEMENT LTD,A01304,12 +13,2016
Allerdale Borough Council,20101,Third Party Payments,Recycling,Cleansing Contract,08/03/2017,199257,43.97,CUMBRIA WASTE MANAGEMENT LTD,A01304,12 +13,2016
Allerdale Borough Council,15501,Supplies & Services,Planning Policy,Consultants Fees,15/03/2017,199258,"3,413.00",WYG ENVIRONMENT PLANNING TRANSPORT LTD,A01785,12 +13,2016
Allerdale Borough Council,15401,Supplies & Services,County Council Elections,General Stationery,22/03/2017,199259,"1,995.00",SHAW & SONS LTD,A00025,12 +13,2016
Allerdale Borough Council,20101,Third Party Payments,Recycling,Cleansing Contract,08/03/2017,199260,"23,143.54",CUMBRIA WASTE MANAGEMENT LTD,A01304,12 +13,2016
Allerdale Borough Council,20101,Third Party Payments,Recycling,Cleansing Contract,08/03/2017,199261,"22,502.21",CUMBRIA WASTE MANAGEMENT LTD,A01304,12 +13,2016
Allerdale Borough Council,20101,Third Party Payments,Recycling,Cleansing Contract,08/03/2017,199262,"26,017.84",CUMBRIA WASTE MANAGEMENT LTD,A01304,12 +13,2016
Allerdale Borough Council,10100,Employee Costs,Customer & Transformation Programme,Budget-Salaries,08/03/2017,199263,"3,462.80",ADECCO RECRUITMENT,A00188,12 +13,2016
Allerdale Borough Council,15808,Supplies & Services,Off-street - Owned,Computer Consumables,29/03/2017,199264,99.50,METRIC GROUP LTD,A00568,12 +13,2016
Allerdale Borough Council,15506,Supplies & Services,Legal Services,Professional Services,08/03/2017,199265,"1,000.00",BURNETTS SOLICITORS,A00129,12 +13,2016
Allerdale Borough Council,15506,Supplies & Services,Legal Services,Professional Services,08/03/2017,199266,267.50,FREETH CARTWRIGHT LLP,A01821,12 +13,2016
Allerdale Borough Council,10401,Employee Costs,Building Control - Chargeable,Agency Staff Costs,08/03/2017,199267,"3,920.00",A&H BUILDING CONTROL CONSULTANTS LTD,A02318,12 +13,2016
Allerdale Borough Council,15506,Supplies & Services,Sports Development,Professional Services,08/03/2017,199268,875.00,ASPATRIA RUGBY UNION FOOTBALL CLUB LTD,M00234,12 +13,2016
Allerdale Borough Council,16350,Supplies & Services,Planning Policy,Miscellaneous Expenses,08/03/2017,199269,22.50,SOLWAY PLAIN FUTURES LTD,A01194,12 +13,2016
Allerdale Borough Council,16302,Supplies & Services,Planning Policy,Room Hire,08/03/2017,199270,100.00,SOLWAY PLAIN FUTURES LTD,A01194,12 +13,2016
Allerdale Borough Council,15506,Supplies & Services,Sports Development,Professional Services,08/03/2017,199271,200.00,Redacted information - included personal information ,A02330,12 +13,2016
Allerdale Borough Council,15506,Supplies & Services,Keswick Public Toliets,Professional Services,08/03/2017,199272,140.80,BURNETTS SOLICITORS,A00129,12 +13,2016
Allerdale Borough Council,51101,Capital Expenditure,Demolition of Moorclose Sports Centre,External Contractor Payments (Capital),08/03/2017,199273,249.17,BRITISH TELECOMMUNICATIONS,X00004,12 +13,2016
Allerdale Borough Council,15803,Supplies & Services,IT Costs (Allerdale Only),Hardware Purchase,22/03/2017,199274,"1,619.70",CCS MEDIA LTD,A00507,12 +13,2016
Allerdale Borough Council,15802,Supplies & Services,IT Services,Hardware Maintenance,29/03/2017,199275,"2,124.00",PARALOGIC LTD,A00102,12 +13,2016
Allerdale Borough Council,15804,Supplies & Services,IT Services,Computer Data Lines B.T.,08/03/2017,199276,"5,788.24",CARLISLE CITY COUNCIL,A00161,12 +13,2016
Allerdale Borough Council,15804,Supplies & Services,Shared Revs & Bens IT Costs,Computer Data Lines B.T.,08/03/2017,199277,"32,069.11",CARLISLE CITY COUNCIL,A00161,12 +13,2016
Allerdale Borough Council,15506,Supplies & Services,Solway Wetlands Project,Professional Services,08/03/2017,199278,700.00,MARK BEVERLEY JOINERY LTD,C00188,12 +13,2016
Allerdale Borough Council,51101,Capital Expenditure,Workington Town Centre Coast Line Featur,External Contractor Payments (Capital),08/03/2017,199279,"16,540.34",TERRIS ELECTRICAL COMPANY LTD,C00014,12 +13,2016
Allerdale Borough Council,12101,Premises,Corporate Property Maintenance,External Maintenance & Decoration,15/03/2017,199280,"2,528.00",PATON BROS SCAFFOLDING LTD,C00009,12 +13,2016
Allerdale Borough Council,15501,Supplies & Services,Strategic Acquisition Works,Consultants Fees,08/03/2017,199281,"2,300.00",JAMES ANDREW RECRUITMENT SOLUTIONS LTD,A02339,12 +13,2016
Allerdale Borough Council,15501,Supplies & Services,Planning Policy,Consultants Fees,08/03/2017,199282,"10,000.00",SOUTH LAKELAND DISTRICT COUNCIL,A00569,12 +13,2016
Allerdale Borough Council,10401,Employee Costs,Environmental Services Pay Group,Agency Staff Costs,26/04/2017,199283,"2,120.00",PRACTICUS LTD,A02237,12 +13,2016
Allerdale Borough Council,15506,Supplies & Services,Estates,Professional Services,08/03/2017,199284,"1,500.00",KINGS CHAMBERS,A00348,12 +13,2016
Allerdale Borough Council,15401,Supplies & Services,Document Management Pay Group,General Stationery,29/03/2017,199285,68.82,LYRECO,A00043,12 +13,2016
Allerdale Borough Council,15401,Supplies & Services,Solway Coast AONB Core Funding,General Stationery,29/03/2017,199286,17.62,LYRECO,A00043,12 +13,2016
Allerdale Borough Council,15401,Supplies & Services,Document Management Pay Group,General Stationery,29/03/2017,199287,244.96,LYRECO,A00043,12 +13,2016
Allerdale Borough Council,15401,Supplies & Services,Solway Wetlands Project,General Stationery,29/03/2017,199288,142.33,LYRECO,A00043,12 +13,2016
Allerdale Borough Council,15401,Supplies & Services,Building Control - Non-Chargeable,General Stationery,08/03/2017,199289,70.55,HEATONS OFFICE SOLUTION (PREV LAKELAND/INTEGRITY),A00069,12 +13,2016
Allerdale Borough Council,14150,Transport,Gates Travel,General-Council Vehicles (Non-Capital),08/03/2017,199290,"1,766.98",GATES TRAVEL,A01525,12 +13,2016
Allerdale Borough Council,16150,Supplies & Services,Solway AONB Other Projects,General Promotions,29/03/2017,199291,42.57,ARCO LIMITED - HEAD OFFICE HULL,A00045,12 +13,2016
Allerdale Borough Council,15550,Supplies & Services,Estates,General-Service Related Fees,29/03/2017,199292,37.92,DUN & BRADSTREET LTD,A01699,12 +13,2016
Allerdale Borough Council,26000,Earmarked Reserves,Tourism Incentive,Budget-Expd funded from Reserve,08/03/2017,199293,"10,000.00",SILLOTH TOWN COUNCIL,A00615,12 +13,2016
Allerdale Borough Council,26000,Earmarked Reserves,Tourism Incentive,Budget-Expd funded from Reserve,08/03/2017,199294,"4,000.00",2030 ARCHITECTS LTD,M01088,12 +13,2016
Allerdale Borough Council,26000,Earmarked Reserves,Tourism Incentive,Budget-Expd funded from Reserve,,199295,"5,000.00",SOLWAY FIRTH PARTNERSHIP,A01548,12 +13,2016
Allerdale Borough Council,33112,Income,Planning and Development,Planning Fees Income,08/03/2017,199296,"4,740.00",PERSIMMON HOMES LANCASHIRE,M00963,12 +13,2016
Allerdale Borough Council,16350,Supplies & Services,Homelessness,Miscellaneous Expenses,08/03/2017,199297,300.00,Redacted information - included personal information ,M01089,12 +13,2016
Allerdale Borough Council,16102,Supplies & Services,Town Centre Management,Regeneration Initiatives,08/03/2017,199298,300.00,COCKERMOUTH CIVIC TRUST,M01090,12 +13,2016
Allerdale Borough Council,72104,Holding and Control Accounts,Debtor Control Account,Debtors (Control Account),08/03/2017,199306,180.00,MISS S M INGLESFIELD,M01091,12 +13,2016
Allerdale Borough Council,26000,Earmarked Reserves,Tourism Incentive,Budget-Expd funded from Reserve,08/03/2017,199307,"5,000.00",HUNTER CONTRACTS NORTH EAST LIMITED,M01092,12 +13,2016
Allerdale Borough Council,54104,Capital Expenditure,Housing Improvement Projects,Gen Grants Private Individuals (Captial),08/03/2017,199308,750.00,CONISTON CONSULTANTS LTD,X00210,12 +13,2016
Allerdale Borough Council,54105,Capital Expenditure,Disabled Facilities Grants,Grants  Private Individuals (Capital),08/03/2017,199309,735.00,BLUE FLAME SERVICES LTD,X00213,12 +13,2016
Allerdale Borough Council,54105,Capital Expenditure,Disabled Facilities Grants,Grants  Private Individuals (Capital),08/03/2017,199310,"3,610.00",BLUE FLAME SERVICES LTD,X00213,12 +13,2016
Allerdale Borough Council,15505,Supplies & Services,Licensing Service,Licences,08/03/2017,199311,130.00,Redacted information - included personal information ,M01093,12 +13,2016
Allerdale Borough Council,33110,Income,Land Charges Service,Search & Enquiry Fees General Income,08/03/2017,199312,11.00,CARTMELL SHEPHERD LTD CLIENT,M01094,12 +13,2016
Allerdale Borough Council,16150,Supplies & Services,Workington TIC,General Promotions,08/03/2017,199313,657.00,Redacted information - included personal information ,M01049,12 +13,2016
Allerdale Borough Council,16150,Supplies & Services,Maryport Shop Front Improvements,General Promotions,08/03/2017,199314,900.00,Redacted information - included personal information ,M00985,12 +13,2016
Allerdale Borough Council,16150,Supplies & Services,Maryport Shop Front Improvements,General Promotions,08/03/2017,199315,900.00,Redacted information - included personal information ,M01095,12 +13,2016
Allerdale Borough Council,16150,Supplies & Services,Maryport Shop Front Improvements,General Promotions,08/03/2017,199316,900.00,Redacted information - included personal information ,M01096,12 +13,2016
Allerdale Borough Council,16150,Supplies & Services,Maryport Shop Front Improvements,General Promotions,08/03/2017,199326,900.00,Redacted information - included personal information ,M01097,12 +13,2016
Allerdale Borough Council,15103,Supplies & Services,Solway Wetlands Project,Purchase of Materials,20/03/2017,199327,572.65,BARCLAYCARD COMMERCIAL ,X00207,12 +13,2016
Allerdale Borough Council,73102,Holding and Control Accounts,Capital Project Retentions,Holding Accounts General - Expenditure,15/03/2017,199328,"91,007.30",ASHCROFT PLANT (CUMBRIA) LTD,C00018,12 +13,2016
Allerdale Borough Council,15201,Supplies & Services,Chief Executive,Entertainment Of Visitors,15/03/2017,199329,34.65,AL'S KITCHEN LTD,A00187,12 +13,2016
Allerdale Borough Council,16350,Supplies & Services,Chief Executive,Miscellaneous Expenses,15/03/2017,199330,24.00,FIRPRESS PRINTERS,A00063,12 +13,2016
Allerdale Borough Council,15405,Supplies & Services,Planning Policy,Use of External Printers,15/03/2017,199331,756.00,FIRPRESS PRINTERS,A00063,12 +13,2016
Allerdale Borough Council,10604,Employee Costs,Chief Executive,Hire of Training Rooms/Venues,15/03/2017,199332,45.00,COCKERMOUTH TOWN COUNCIL,A00586,12 +13,2016
Allerdale Borough Council,14202,Transport,Chief Executive,Hire Car and petrol,15/03/2017,199333,64.05,ENTERPRISE RENT A CAR,A01367,12 +13,2016
Allerdale Borough Council,14202,Transport,Chief Executive,Hire Car and petrol,15/03/2017,199334,143.89,ENTERPRISE RENT A CAR,A01367,12 +13,2016
Allerdale Borough Council,15506,Supplies & Services,Solway Wetlands Project,Professional Services,15/03/2017,199335,"3,925.00",NORTH OF ENGLAND CIVIC TRUST,A02178,12 +13,2016
Allerdale Borough Council,12101,Premises,Corporate Property Maintenance,External Maintenance & Decoration,15/03/2017,199336,"1,004.00",THOMAS ARMSTRONG ,C00003,12 +13,2016
Allerdale Borough Council,10605,Employee Costs,Training,Travel,15/03/2017,199337,56.98,ENTERPRISE RENT A CAR,A01367,12 +13,2016
Allerdale Borough Council,15506,Supplies & Services,Solway Wetlands Project,Professional Services,15/03/2017,199338,"1,962.50",NORTH OF ENGLAND CIVIC TRUST,A02178,12 +13,2016
Allerdale Borough Council,20150,Third Party Payments,Footways,General Partnership Service Fees,15/03/2017,199339,"6,097.80",CUMBRIA CC,A00066,12 +13,2016
Allerdale Borough Council,20150,Third Party Payments,Footways,General Partnership Service Fees,15/03/2017,199340,"15,192.59",CUMBRIA CC,A00066,12 +13,2016
Allerdale Borough Council,12302,Premises,Solway Coast AONB Core Funding,Building Cleaning,15/03/2017,199341,99.31,ORIAN SOLUTIONS LTD,A01814,12 +13,2016
Allerdale Borough Council,15302,Supplies & Services,Solway Coast AONB Core Funding,Protective Clothing,15/03/2017,199342,"1,520.84",COUNTRY HOUSE (CARLISLE) LTD,A00761,12 +13,2016
Allerdale Borough Council,15506,Supplies & Services,Solway Wetlands Project,Professional Services,15/03/2017,199343,"7,185.50",BOWLES GREEN LIMITED,A00763,12 +13,2016
Allerdale Borough Council,12408,Premises,Corporate Property Maintenance,Water & Sewage,15/03/2017,199344,"1,605.15",UNITED UTILITIES ,X00011,12 +13,2016
Allerdale Borough Council,12402,Premises,Corporate Property Maintenance,Electricity,29/03/2017,199345,"-5,149.96",N POWER,X00015,12 +13,2016
Allerdale Borough Council,12402,Premises,Corporate Property Maintenance,Electricity,29/03/2017,199346,"2,393.36",N POWER ,X00015,12 +13,2016
Allerdale Borough Council,12402,Premises,Corporate Property Maintenance,Electricity,29/03/2017,199347,"1,625.46",N POWER,X00015,12 +13,2016
Allerdale Borough Council,12408,Premises,Corporate Property Maintenance,Water & Sewage,15/03/2017,199348,"1,551.82",UNITED UTILITIES,X00011,12 +13,2016
Allerdale Borough Council,12408,Premises,Corporate Property Maintenance,Water & Sewage,15/03/2017,199349,"1,016.45",UNITED UTILITIES,X00011,12 +13,2016
Allerdale Borough Council,12408,Premises,Corporate Property Maintenance,Water & Sewage,15/03/2017,199350,"6,720.17",UNITED UTILITIES ,X00011,12 +13,2016
Allerdale Borough Council,20150,Third Party Payments,Footways,General Partnership Service Fees,15/03/2017,199351,-955.00,CUMBRIA CC ,A00066,12 +13,2016
Allerdale Borough Council,34104,Income,Benefits,Rent Allowances Overpayments Income,15/03/2017,199352,5.70,ROSSENDALES LTD,A00964,12 +13,2016
Allerdale Borough Council,34104,Income,Benefits,Rent Allowances Overpayments Income,15/03/2017,199353,9.04,ROSSENDALES LTD,A00964,12 +13,2016
Allerdale Borough Council,12403,Premises,Corporate Property Maintenance,Gas,15/03/2017,199354,204.46,BRITISH GAS ,X00039,12 +13,2016
Allerdale Borough Council,12403,Premises,Corporate Property Maintenance,Gas,15/03/2017,199355,-186.54,BRITISH GAS ,X00039,12 +13,2016
Allerdale Borough Council,12403,Premises,Corporate Property Maintenance,Gas,15/03/2017,199356,10.86,BRITISH GAS ,X00039,12 +13,2016
Allerdale Borough Council,12408,Premises,Corporate Property Maintenance,Water & Sewage,15/03/2017,199357,8.61,UNITED UTILITIES ,X00011,12 +13,2016
Allerdale Borough Council,12408,Premises,Corporate Property Maintenance,Water & Sewage,15/03/2017,199358,93.37,UNITED UTILITIES ,X00011,12 +13,2016
Allerdale Borough Council,12408,Premises,Public Convenience Cleaning,Water & Sewage,15/03/2017,199359,42.04,UNITED UTILITIES ,X00011,12 +13,2016
Allerdale Borough Council,12408,Premises,Public Convenience Cleaning,Water & Sewage,15/03/2017,199360,10.92,UNITED UTILITIES ,X00011,12 +13,2016
Allerdale Borough Council,12408,Premises,Public Convenience Cleaning,Water & Sewage,15/03/2017,199361,157.16,UNITED UTILITIES ,X00011,12 +13,2016
Allerdale Borough Council,34150,Income,Allerdale Options,General Recovery of Other Costs-Income,20/03/2017,199362,"1,637.42",BARCLAYCARD COMMERCIAL,X00207,12 +13,2016
Allerdale Borough Council,54105,Capital Expenditure,Disabled Facilities Grants,Grants  Private Individuals (Capital),15/03/2017,199363,"1,295.00",HANDICARE ACCESSIBILITY LTD,X00211,12 +13,2016
Allerdale Borough Council,54105,Capital Expenditure,Disabled Facilities Grants,Grants  Private Individuals (Capital),15/03/2017,199364,"3,415.00",BLUE FLAME SERVICES LTD,X00213,12 +13,2016
Allerdale Borough Council,54105,Capital Expenditure,Disabled Facilities Grants,Grants  Private Individuals (Capital),15/03/2017,199365,"6,941.82",Redacted information - included personal information ,X00251,12 +13,2016
Allerdale Borough Council,16102,Supplies & Services,Town Centre Management,Regeneration Initiatives,15/03/2017,199366,750.00,KESWICK TOWN COUNCIL,A00253,12 +13,2016
Allerdale Borough Council,16102,Supplies & Services,Town Centre Management,Regeneration Initiatives,15/03/2017,199367,600.00,COCKERMOUTH CHAMBER OF TRADE,A01807,12 +13,2016
Allerdale Borough Council,16350,Supplies & Services,Director of Resources & PA,Miscellaneous Expenses,20/03/2017,199368,100.00,BARCLAYCARD COMMERCIAL,X00207,12 +13,2016
Allerdale Borough Council,15201,Supplies & Services,Leaders Services,Entertainment Of Visitors,15/03/2017,199369,68.39,ALLERDALE BOROUGH COUNCIL,X00034,12 +13,2016
Allerdale Borough Council,54105,Capital Expenditure,Disabled Facilities Grants,Grants  Private Individuals (Capital),15/03/2017,199370,"6,850.00",W W BUILDERS LIMITED,X00212,12 +13,2016
Allerdale Borough Council,10201,Employee Costs,Housing & Health Pay Group,Long Service Awards,15/03/2017,199371,260.00,Redacted information - included personal information ,M01098,12 +13,2016
Allerdale Borough Council,54104,Capital Expenditure,Housing Improvement Projects,Gen Grants Private Individuals (Captial),15/03/2017,199372,200.00,Redacted information - included personal information ,M01100,12 +13,2016
Allerdale Borough Council,16350,Supplies & Services,Customer Services Pay Group,Miscellaneous Expenses,15/03/2017,199373,9.77,Redacted information - included personal information ,M01101,12 +13,2016
Allerdale Borough Council,16150,Supplies & Services,Maryport Shop Front Improvements,General Promotions,15/03/2017,199374,"2,371.50",Redacted information - included personal information ,M01102,12 +13,2016
Allerdale Borough Council,16150,Supplies & Services,Maryport Shop Front Improvements,General Promotions,15/03/2017,199375,900.00,Redacted information - included personal information ,M01103,12 +13,2016
Allerdale Borough Council,16150,Supplies & Services,Maryport Shop Front Improvements,General Promotions,15/03/2017,199376,900.00,NETHERHALL RUFC.,M01104,12 +13,2016
Allerdale Borough Council,16102,Supplies & Services,Town Centres,Regeneration Initiatives,15/03/2017,199377,"4,869.60",SEATON P.C.,X00089,12 +13,2016
Allerdale Borough Council,16150,Supplies & Services,Maryport Shop Front Improvements,General Promotions,15/03/2017,199378,900.00,Redacted information - included personal information ,M01091,12 +13,2016
Allerdale Borough Council,16150,Supplies & Services,"The Hub, Workington Town Centre",General Promotions,15/03/2017,199379,"1,500.00",Redacted information - included personal information ,M00601,12 +13,2016
Allerdale Borough Council,16102,Supplies & Services,Town Centres,Regeneration Initiatives,15/03/2017,199380,"6,000.00",WORKINGTON TOWN COUNCIL,A01615,12 +13,2016
Allerdale Borough Council,16102,Supplies & Services,Town Centres,Regeneration Initiatives,15/03/2017,199381,"1,857.00",ASPATRIA T.C.,X00047,12 +13,2016
Allerdale Borough Council,16102,Supplies & Services,Town Centres,Regeneration Initiatives,15/03/2017,199382,"2,684.90",MARYPORT T.C.,X00086,12 +13,2016
Allerdale Borough Council,10601,Employee Costs,Training,External Courses & Seminar Fees,22/03/2017,199383,95.00,ABC FOOD LAW LTD,A02406,12 +13,2016
Allerdale Borough Council,20150,Third Party Payments,Corporate Property Maintenance,General Partnership Service Fees,15/03/2017,199384,245.95,ORIAN SOLUTIONS LTD,A01814,12 +13,2016
Allerdale Borough Council,12100,Premises,MSCP Maintenance,Budget-External Maintenance & Decoration,15/03/2017,199385,"3,132.70",WYG PLANNING & DESIGN,A00682,12 +13,2016
Allerdale Borough Council,15401,Supplies & Services,County Council Elections,General Stationery,29/03/2017,199386,196.00,SHAW & SONS LTD,A00025,12 +13,2016
Allerdale Borough Council,12201,Premises,Corporate Property Maintenance,Internal Maintenance,29/03/2017,199387,900.00,BARRIE HAIGH PAINTING CONTRACTOR,A01607,12 +13,2016
Allerdale Borough Council,15104,Supplies & Services,Bereavement Services,Supplies for Resale,15/03/2017,199388,171.00,GRANART,A00644,12 +13,2016
Allerdale Borough Council,15506,Supplies & Services,Environmental Protection,Professional Services,29/03/2017,199389,"1,807.50",ENVIRONMENTAL SCIENTIFICS GROUP,A00896,12 +13,2016
Allerdale Borough Council,15506,Supplies & Services,Environmental Protection,Professional Services,29/03/2017,199390,432.00,ENVIRONMENTAL SCIENTIFICS GROUP,A00896,12 +13,2016
Allerdale Borough Council,15506,Supplies & Services,Solway Wetlands Project,Professional Services,29/03/2017,199391,"1,005.00",KERRY CABLE T/A BUSINESS FRIEND LTD,A02400,12 +13,2016
Allerdale Borough Council,12305,Premises,Corporate Property Maintenance,Inspections and Services,15/03/2017,199392,392.00,AQUAID (NORTH),A00123,12 +13,2016
Allerdale Borough Council,12305,Premises,Corporate Property Maintenance,Inspections and Services,15/03/2017,199393,98.00,AQUAID (NORTH),A00123,12 +13,2016
Allerdale Borough Council,15811,Supplies & Services,IT Services,Software Maintenance,16/03/2017,199394,264.99,SAGE (UK) LTD,A01911,12 +13,2016
Allerdale Borough Council,15513,Supplies & Services,Environmental Initiatives,Subcontractors - General,29/03/2017,199395,880.00,FILCRIS LIMITED,A02405,12 +13,2016
Allerdale Borough Council,12307,Premises,Corporate Property Maintenance,Fixtures and Fittings,29/03/2017,199396,136.65,THYSSENKRUPP ELEVATOR UK LTD,C00072,12 +13,2016
Allerdale Borough Council,15103,Supplies & Services,Solway Coast AONB Core Funding,Purchase of Materials,29/03/2017,199397,212.79,FINDEL EDUCATION LTD,A01767,12 +13,2016
Allerdale Borough Council,15404,Supplies & Services,Finance and Accounting Pay Group,Reference Materials,05/04/2017,199398,"2,595.00",LG FUTURES,A02156,12 +13,2016
Allerdale Borough Council,15101,Supplies & Services,Public Building Cleaning,Equipment Costs,15/03/2017,199399,86.80,WF HYGIENE & CLEANING SUPPLIES,A01794,12 +13,2016
Allerdale Borough Council,20101,Third Party Payments,Recycling,Cleansing Contract,15/03/2017,199400,"20,743.04",CUMBRIA WASTE MANAGEMENT LTD,A01304,12 +13,2016
Allerdale Borough Council,20101,Third Party Payments,Recycling,Cleansing Contract,15/03/2017,199401,"21,643.72",CUMBRIA WASTE MANAGEMENT LTD,A01304,12 +13,2016
Allerdale Borough Council,20101,Third Party Payments,Recycling,Cleansing Contract,15/03/2017,199402,"23,032.89",CUMBRIA WASTE MANAGEMENT LTD,A01304,12 +13,2016
Allerdale Borough Council,20101,Third Party Payments,Recycling,Cleansing Contract,15/03/2017,199403,"23,755.76",CUMBRIA WASTE MANAGEMENT LTD,A01304,12 +13,2016
Allerdale Borough Council,10110,Employee Costs,Busy Bees Childcare Scheme,Salary Sacrifice,15/03/2017,199404,81.32,COMPUTERSHARE VOUCHER SERVICES,A00991,12 +13,2016
Allerdale Borough Council,10110,Employee Costs,Busy Bees Childcare Scheme,Salary Sacrifice,15/03/2017,199405,"1,478.50",COMPUTERSHARE VOUCHER SERVICES,A00991,12 +13,2016
Allerdale Borough Council,15404,Supplies & Services,Legal Services,Reference Materials,15/03/2017,199406,23.24,CUMBRIA CC ,A00066,12 +13,2016
Allerdale Borough Council,15502,Supplies & Services,Legal Services,Land Registry Fees,07/03/2017,199407,45.00,HM LAND REGISTRY ,A00505,12 +13,2016
Allerdale Borough Council,15502,Supplies & Services,Legal Services,Land Registry Fees,14/03/2017,199408,48.00,HM LAND REGISTRY,A00505,12 +13,2016
Allerdale Borough Council,54105,Capital Expenditure,Disabled Facilities Grants,Grants  Private Individuals (Capital),15/03/2017,199409,"3,226.00",MAYSON BROS LTD,X00132,12 +13,2016
Allerdale Borough Council,16150,Supplies & Services,Town Centre Management,General Promotions,15/03/2017,199410,350.00,Redacted information - included personal information ,M00985,12 +13,2016
Allerdale Borough Council,16150,Supplies & Services,Maryport Shop Front Improvements,General Promotions,15/03/2017,199411,900.00,Redacted information - included personal information ,M00989,12 +13,2016
Allerdale Borough Council,16150,Supplies & Services,Town Centre Management,General Promotions,15/03/2017,199412,360.00,Redacted information - included personal information ,M01040,12 +13,2016
Allerdale Borough Council,16150,Supplies & Services,Maryport Shop Front Improvements,General Promotions,15/03/2017,199413,810.00,Redacted information - included personal information ,M01105,12 +13,2016
Allerdale Borough Council,16150,Supplies & Services,Town Centre Management,General Promotions,15/03/2017,199414,500.00,Redacted information - included personal information ,M01106,12 +13,2016
Allerdale Borough Council,33112,Income,Planning and Development,Planning Fees Income,19/04/2017,199415,385.00,Redacted information - included personal information ,M01107,12 +13,2016
Allerdale Borough Council,16150,Supplies & Services,Solway Coast Volunteer Support,General Promotions,15/03/2017,199416,480.00,BANK MILL NURSERIES & VISITOR CENTRE,A01834,12 +13,2016
Allerdale Borough Council,16150,Supplies & Services,Solway AONB Other Projects,General Promotions,15/03/2017,199417,38.59,ARCO LIMITED - HEAD OFFICE HULL,A00045,12 +13,2016
Allerdale Borough Council,16150,Supplies & Services,Solway AONB Other Projects,General Promotions,15/03/2017,199418,16.82,ARCO LIMITED - HEAD OFFICE HULL,A00045,12 +13,2016
Allerdale Borough Council,14202,Transport,Housing & Health Pay Group,Hire Car and petrol,15/03/2017,199419,38.49,ENTERPRISE RENT A CAR,A01367,12 +13,2016
Allerdale Borough Council,16150,Supplies & Services,Solway AONB Other Projects,General Promotions,15/03/2017,199420,-16.82,ARCO LIMITED - HEAD OFFICE HULL,A00045,12 +13,2016
Allerdale Borough Council,15600,Supplies & Services,Electoral Registration,Budget-Postal Services,15/03/2017,199421,586.35,ROYAL MAIL LETTERS,X00021,12 +13,2016
Allerdale Borough Council,35106,Income,Homelessness,Dwellings Income,15/03/2017,199422,14.97,ALLERDALE,A00342,12 +13,2016
Allerdale Borough Council,12403,Premises,Corporate Property Maintenance,Gas,15/03/2017,199423,320.47,BRITISH GAS - PAYMENT AREA 60,X00039,12 +13,2016
Allerdale Borough Council,12402,Premises,Corporate Property Maintenance,Electricity,29/03/2017,199424,475.81,N POWER - PO BOX 236,X00015,12 +13,2016
Allerdale Borough Council,12408,Premises,Corporate Property Maintenance,Water & Sewage,15/03/2017,199425,22.38,UNITED UTILITIES,X00011,12 +13,2016
Allerdale Borough Council,12408,Premises,Public Convenience Cleaning,Water & Sewage,15/03/2017,199426,33.42,UNITED UTILITIES,X00011,12 +13,2016
Allerdale Borough Council,12408,Premises,Corporate Property Maintenance,Water & Sewage,15/03/2017,199427,12.63,UNITED UTILITIES,X00011,12 +13,2016
Allerdale Borough Council,12408,Premises,Corporate Property Maintenance,Water & Sewage,15/03/2017,199428,752.57,UNITED UTILITIES,X00011,12 +13,2016
Allerdale Borough Council,21150,Transfer Payments,Festivals & Events,General Grants,22/03/2017,199430,500.00,HAYTON CASTLE FIELDS CIC,M01108,12 +13,2016
Allerdale Borough Council,15800,Supplies & Services,Shared Revs & Bens Projects,Budget-Computing Costs (Non Capital),22/03/2017,199431,"7,118.55",CARLISLE CITY COUNCIL,A00161,12 +13,2016
Allerdale Borough Council,16150,Supplies & Services,"The Hub, Workington Town Centre",General Promotions,22/03/2017,199432,120.00,POD (NORTH WEST) LIMITED,A01977,12 +13,2016
Allerdale Borough Council,16150,Supplies & Services,"The Hub, Workington Town Centre",General Promotions,22/03/2017,199433,300.00,Redacted information - included personal information ,A01408,12 +13,2016
Allerdale Borough Council,15508,Supplies & Services,Economic Regeneration,Subscriptions,22/03/2017,199434,599.00,THE INSTITUTE OF ECONOMIC DEVELOPMENT,A02308,12 +13,2016
Allerdale Borough Council,10601,Employee Costs,Training,External Courses & Seminar Fees,05/04/2017,199435,352.20,HAYMARKET MEDIA GROUP,A00724,12 +13,2016
Allerdale Borough Council,12101,Premises,Corporate Property Maintenance,External Maintenance & Decoration,22/03/2017,199436,"9,112.50",KEVIN DICKINSON UPVC LTD,X00131,12 +13,2016
Allerdale Borough Council,54105,Capital Expenditure,Central Heating Fund,Grants  Private Individuals (Capital),22/03/2017,199437,"766,628.14",NPOWER NORTHERN LIMITED,A02337,12 +13,2016
Allerdale Borough Council,12201,Premises,Public Convenience Cleaning,Internal Maintenance,22/03/2017,199438,500.00,NORTH WEST LAKES PROPERTY CLEANING,C00159,12 +13,2016
Allerdale Borough Council,15101,Supplies & Services,Corporate Property Maintenance,Equipment Costs,14/03/2017,199439,127.39,BOOKER CASH & CARR,A01419,12 +13,2016
Allerdale Borough Council,15506,Supplies & Services,Shared Revs & Bens Projects,Professional Services,22/03/2017,199440,"1,542.07",CARLISLE CITY COUNCIL,A00161,12 +13,2016
Allerdale Borough Council,15506,Supplies & Services,Solway Wetlands Project,Professional Services,29/03/2017,199441,800.00,OPEN DOOR MULTIMEDIA,A01576,12 +13,2016
Allerdale Borough Council,10601,Employee Costs,Training,External Courses & Seminar Fees,22/03/2017,199442,210.00,WESTMINSTER FORUM PROJECTS,A02414,12 +13,2016
Allerdale Borough Council,15904,Supplies & Services,Members Services,Training,22/03/2017,199443,650.00,MODERN MINDSET LTD,A01269,12 +13,2016
Allerdale Borough Council,10601,Employee Costs,Training,External Courses & Seminar Fees,29/03/2017,199444,350.00,TOWN & COUNTRY PLANNING,A02412,12 +13,2016
Allerdale Borough Council,15506,Supplies & Services,Food and Occupational Health,Professional Services,22/03/2017,199445,235.00,MPM NORTH WEST LIMITED,A00113,12 +13,2016
Allerdale Borough Council,54103,Capital Expenditure,Securing Affordable Homes,Grants to  Housing Assoc (Capital),22/03/2017,199446,"10,000.00",IMPACT HOUSING ASSOCIATION LTD,A00236,12 +13,2016
Allerdale Borough Council,20101,Third Party Payments,Public Convenience Cleaning,Cleansing Contract,22/03/2017,199447,325.00,LINDOW HALL,A00165,12 +13,2016
Allerdale Borough Council,15501,Supplies & Services,Strategic Acquisition Works,Consultants Fees,22/03/2017,199448,"1,840.00",JAMES ANDREW RECRUITMENT SOLUTIONS LTD,A02339,12 +13,2016
Allerdale Borough Council,12101,Premises,Corporate Property Maintenance,External Maintenance & Decoration,22/03/2017,199449,432.00,MPM NORTH WEST LIMITED,A00113,12 +13,2016
Allerdale Borough Council,16102,Supplies & Services,Town Centres,Regeneration Initiatives,05/04/2017,199450,"3,125.00",BORDER SIGNS & GRAPHICS LTD,A02408,12 +13,2016
Allerdale Borough Council,15501,Supplies & Services,Building Control - Chargeable,Consultants Fees,22/03/2017,199451,46.00,PK ELECTRICAL (CARLISLE) LTD,A00778,12 +13,2016
Allerdale Borough Council,15400,Supplies & Services,Benefits,"Budget-Printing,Stationery & Office Supp",22/03/2017,199452,540.00,FIRPRESS PRINTERS,A00063,12 +13,2016
Allerdale Borough Council,15808,Supplies & Services,Multi-functional Printers,Computer Consumables,05/04/2017,199453,250.00,ANTALIS LIMITED,A00122,12 +13,2016
Allerdale Borough Council,16102,Supplies & Services,LEP Flood Recovery Events Funding,Regeneration Initiatives,29/03/2017,199454,960.00,POD (NORTH WEST) LIMITED,A01977,12 +13,2016
Allerdale Borough Council,10401,Employee Costs,Building Control - Chargeable,Agency Staff Costs,22/03/2017,199455,"3,300.00",JAMES ANDREW RECRUITMENT SOLUTIONS LTD,A02339,12 +13,2016
Allerdale Borough Council,20111,Third Party Payments,Environmental Initiatives,Voluntary Organisations,29/03/2017,199456,"10,000.00",SUSTRANS LIMITED,A00490,12 +13,2016
Allerdale Borough Council,81602,Balance Sheet,General Fund,Prov-Insurance Excess (Balance Sheet),22/03/2017,199457,"3,621.00",ZURICH MUNICIPAL,A00429,12 +13,2016
Allerdale Borough Council,20150,Third Party Payments,Footways,General Partnership Service Fees,05/04/2017,199458,926.00,ELECTRICITY NORTH WEST LTD,A00471,12 +13,2016
Allerdale Borough Council,12101,Premises,Car Parks Inspection & Maintenance,External Maintenance & Decoration,22/03/2017,199459,"1,138.00",Redacted information - included personal information ,C00008,12 +13,2016
Allerdale Borough Council,15501,Supplies & Services,Strategic Acquisition Works,Consultants Fees,22/03/2017,199460,"2,300.00",JAMES ANDREW RECRUITMENT SOLUTIONS LTD,A02339,12 +13,2016
Allerdale Borough Council,15808,Supplies & Services,IT Services,Computer Consumables,22/03/2017,199461,960.00,PMD MAGNETICS,A01086,12 +13,2016
Allerdale Borough Council,21150,Transfer Payments,Leisure Activities,General Grants,22/03/2017,199462,400.00,KESWICK CRICKET CLUB,M00859,12 +13,2016
Allerdale Borough Council,21150,Transfer Payments,Leisure Activities,General Grants,22/03/2017,199463,50.00,MARYPORT AMATEURS,M00867,12 +13,2016
Allerdale Borough Council,16150,Supplies & Services,Maryport Shop Front Improvements,General Promotions,22/03/2017,199464,950.00,Redacted information - included personal information ,M01109,12 +13,2016
Allerdale Borough Council,16150,Supplies & Services,Maryport Shop Front Improvements,General Promotions,22/03/2017,199465,468.00,Redacted information - included personal information ,M01110,12 +13,2016
Allerdale Borough Council,16150,Supplies & Services,Maryport Shop Front Improvements,General Promotions,22/03/2017,199466,"1,800.00",Redacted information - included personal information ,M01111,12 +13,2016
Allerdale Borough Council,16150,Supplies & Services,Maryport Shop Front Improvements,General Promotions,22/03/2017,199467,580.00,Redacted information - included personal information ,M01112,12 +13,2016
Allerdale Borough Council,16150,Supplies & Services,Town Centre Management,General Promotions,22/03/2017,199468,192.00,Redacted information - included personal information ,M01113,12 +13,2016
Allerdale Borough Council,16102,Supplies & Services,Town Centre Management,Regeneration Initiatives,22/03/2017,199469,768.00,SILLOTH TOURISM ACTION GROUP,M00389,12 +13,2016
Allerdale Borough Council,15403,Supplies & Services,Solway Wetlands Project,Publications and Periodicals,22/03/2017,199470,220.00,CPL MEDIA LTD,A02161,12 +13,2016
Allerdale Borough Council,20305,Third Party Payments,Maryport Wave,Contract Services-Leisure Centres,22/03/2017,199471,"12,500.00",GREENWICH LEISURE LTD (PREV CARLISLE LEISURE),A00136,12 +13,2016
Allerdale Borough Council,15506,Supplies & Services,Solway Wetlands Project,Professional Services,22/03/2017,199472,127.50,Redacted information - included personal information ,A02361,12 +13,2016
Allerdale Borough Council,15550,Supplies & Services,Festivals & Events,General-Service Related Fees,22/03/2017,199473,"45,000.00",CN EVENTS MANAGEMENT,A01099,12 +13,2016
Allerdale Borough Council,15100,Supplies & Services,Revenue,"Budget-Equipment, Furniture & Materials",22/03/2017,199474,47.08,ENTERPRISE RENT A CAR,A01367,12 +13,2016
Allerdale Borough Council,15506,Supplies & Services,Solway Wetlands Project,Professional Services,22/03/2017,199475,675.00,Redacted information - included personal information ,C00183,12 +13,2016
Allerdale Borough Council,15810,Supplies & Services,Museums,Software Licences,29/03/2017,199476,259.00,MODES USER ASSOCIATION,A00796,12 +13,2016
Allerdale Borough Council,10601,Employee Costs,Training,External Courses & Seminar Fees,22/03/2017,199477,130.00,WOODWARD SHE LTD,A00170,12 +13,2016
Allerdale Borough Council,10601,Employee Costs,Training,External Courses & Seminar Fees,22/03/2017,199478,"9,300.00",JULIE BELL CONSULTING LIMITED,A01282,12 +13,2016
Allerdale Borough Council,10605,Employee Costs,Training,Travel,22/03/2017,199479,25.50,EILBECK RENTAL,A01161,12 +13,2016
Allerdale Borough Council,10605,Employee Costs,Training,Travel,22/03/2017,199480,25.50,EILBECK RENTAL,A01161,12 +13,2016
Allerdale Borough Council,10202,Employee Costs,Human Resources Pay Group,Medical Screening,22/03/2017,199481,275.00,ALERE HEALTHCARE CONNECTIONS LTD,A02393,12 +13,2016
Allerdale Borough Council,10202,Employee Costs,Human Resources Pay Group,Medical Screening,22/03/2017,199482,275.00,ALERE HEALTHCARE CONNECTIONS LTD,A02393,12 +13,2016
Allerdale Borough Council,10202,Employee Costs,Human Resources Pay Group,Medical Screening,22/03/2017,199483,275.00,ALERE HEALTHCARE CONNECTIONS LTD,A02393,12 +13,2016
Allerdale Borough Council,10401,Employee Costs,Human Resources Pay Group,Agency Staff Costs,29/03/2017,199484,"3,644.85",Redacted information - included personal information ,A02373,12 +13,2016
Allerdale Borough Council,10202,Employee Costs,Human Resources Pay Group,Medical Screening,29/03/2017,199485,65.00,ALERE HEALTHCARE CONNECTIONS LTD,A02393,12 +13,2016
Allerdale Borough Council,10202,Employee Costs,Human Resources Pay Group,Medical Screening,29/03/2017,199486,65.00,ALERE HEALTHCARE CONNECTIONS LTD,A02393,12 +13,2016
Allerdale Borough Council,10202,Employee Costs,Human Resources Pay Group,Medical Screening,29/03/2017,199487,65.00,ALERE HEALTHCARE CONNECTIONS LTD,A02393,12 +13,2016
Allerdale Borough Council,10202,Employee Costs,Human Resources Pay Group,Medical Screening,29/03/2017,199488,110.00,ALERE HEALTHCARE CONNECTIONS LTD,A02393,12 +13,2016
Allerdale Borough Council,10202,Employee Costs,Human Resources Pay Group,Medical Screening,29/03/2017,199489,275.00,ALERE HEALTHCARE CONNECTIONS LTD,A02393,12 +13,2016
Allerdale Borough Council,10605,Employee Costs,Training,Travel,22/03/2017,199490,40.49,ENTERPRISE RENT A CAR,A01367,12 +13,2016
Allerdale Borough Council,10601,Employee Costs,Training,External Courses & Seminar Fees,12/04/2017,199491,"1,590.00",SYSTEMATIX LTD,A01976,12 +13,2016
Allerdale Borough Council,10202,Employee Costs,Human Resources Pay Group,Medical Screening,05/04/2017,199492,65.00,ALERE HEALTHCARE CONNECTIONS LTD,A02393,12 +13,2016
Allerdale Borough Council,15550,Supplies & Services,Excess Insurance Costs,General-Service Related Fees,12/04/2017,199493,700.00,EGTON MEDICAL INFORMATION SYSTEMS LTD T/A EGTON DIGITAL,A02404,12 +13,2016
Allerdale Borough Council,51101,Capital Expenditure,Flooding/Landslip,External Contractor Payments (Capital),22/03/2017,199494,"1,160.00",WYG PLANNING & DESIGN,A00682,12 +13,2016
Allerdale Borough Council,12301,Premises,Corporate Property Maintenance,Security,12/04/2017,199495,259.00,ADT FIRE & SECURITY PLC,C00035,12 +13,2016
Allerdale Borough Council,15506,Supplies & Services,KMAG Enhancement Activity,Professional Services,22/03/2017,199496,"1,500.00",ARTLINK TRANSPORT & STORAGE LTD,A02362,12 +13,2016
Allerdale Borough Council,20100,Third Party Payments,Environmental Initiatives,Budget-Partnership Services,29/03/2017,199497,345.00,ISS WATERERS LANDSCAPE,C00044,12 +13,2016
Allerdale Borough Council,10401,Employee Costs,Housing & Health Pay Group,Agency Staff Costs,22/03/2017,199498,242.00,HAYS SPECIALIST RECRUITMENT LTD,A00280,12 +13,2016
Allerdale Borough Council,15101,Supplies & Services,Workington Nature Partnership,Equipment Costs,29/03/2017,199499,168.04,ISS WATERERS LANDSCAPE,C00044,12 +13,2016
Allerdale Borough Council,16301,Supplies & Services,Sports Development,Reimbursement,22/03/2017,199500,100.00,GREENWICH LEISURE LTD (PREV CARLISLE LEISURE),A00136,12 +13,2016
Allerdale Borough Council,16301,Supplies & Services,Sports Development,Reimbursement,22/03/2017,199501,100.00,GREENWICH LEISURE LTD (PREV CARLISLE LEISURE),A00136,12 +13,2016
Allerdale Borough Council,15501,Supplies & Services,Human Resources Pay Group,Consultants Fees,22/03/2017,199502,"2,961.00",HAYS SPECIALIST RECRUITMENT LTD,A00280,12 +13,2016
Allerdale Borough Council,15506,Supplies & Services,KMAG Enhancement Activity,Professional Services,29/03/2017,199503,"1,500.00",ARTLINK TRANSPORT & STORAGE LTD,A02362,12 +13,2016
Allerdale Borough Council,15904,Supplies & Services,Members Services,Training,22/03/2017,199504,36.08,MCKANES PRINTERS,A01507,12 +13,2016
Allerdale Borough Council,10401,Employee Costs,Housing & Health Pay Group,Agency Staff Costs,29/03/2017,199505,96.80,HAYS SPECIALIST RECRUITMENT LTD,A00280,12 +13,2016
Allerdale Borough Council,15501,Supplies & Services,Parks Development,Consultants Fees,22/03/2017,199506,"1,000.00",CATHY NEWBERY LIMITED,A02064,12 +13,2016
Allerdale Borough Council,12301,Premises,Corporate Property Maintenance,Security,22/03/2017,199507,280.75,G4S SECURE SOLUTIONS,A01597,12 +13,2016
Allerdale Borough Council,15101,Supplies & Services,Workington Nature Partnership,Equipment Costs,05/04/2017,199508,33.26,ISS WATERERS LANDSCAPE,C00044,12 +13,2016
Allerdale Borough Council,12103,Premises,Parks and Grounds Maintenance,Grounds Maintenance,05/04/2017,199509,120.00,ISS WATERERS LANDSCAPE,C00044,12 +13,2016
Allerdale Borough Council,20108,Third Party Payments,Corporate Management,Audit Fees,29/03/2017,199510,"12,032.00",GRANT THORNTON UK LLP,A01736,12 +13,2016
Allerdale Borough Council,10401,Employee Costs,Environmental Services Pay Group,Agency Staff Costs,05/04/2017,199511,"2,120.00",PRACTICUS LTD,A02237,12 +13,2016
Allerdale Borough Council,15103,Supplies & Services,Parks Development,Purchase of Materials,05/04/2017,199512,"3,288.00",ISS WATERERS LANDSCAPE,C00044,12 +13,2016
Allerdale Borough Council,10401,Employee Costs,Housing & Health Pay Group,Agency Staff Costs,12/04/2017,199513,96.80,HAYS SPECIALIST RECRUITMENT LTD,A00280,12 +13,2016
Allerdale Borough Council,10401,Employee Costs,Environmental Services Pay Group,Agency Staff Costs,12/04/2017,199514,"2,120.00",PRACTICUS LTD,A02237,12 +13,2016
Allerdale Borough Council,12101,Premises,Corporate Property Maintenance,External Maintenance & Decoration,29/03/2017,199515,"7,978.25",TAYLOR'S JOINERY & PLASTICS LTD,C00181,12 +13,2016
Allerdale Borough Council,21150,Transfer Payments,Carnegie Trust Contribution,General Grants,22/03/2017,199516,"11,250.00",Carnegie Theatre Trust,R00015,12 +13,2016
Allerdale Borough Council,21150,Transfer Payments,Carnegie Trust Contribution,General Grants,22/03/2017,199517,"11,250.00",Carnegie Theatre Trust,R00015,12 +13,2016
Allerdale Borough Council,15501,Supplies & Services,IT - New Initiatives,Consultants Fees,29/03/2017,199518,895.00,TOTALMOBILE LIMITED,A01712,12 +13,2016
Allerdale Borough Council,15506,Supplies & Services,Housing & Health Pay Group,Professional Services,12/04/2017,199519,"1,275.62",TRACY HOWARD YOUR BEST OPTION,A02376,12 +13,2016
Allerdale Borough Council,15102,Supplies & Services,Food and Occupational Health,Equipment Repair & Maintenance,12/04/2017,199520,94.00,KLIPSPRINGER LTD,A01199,12 +13,2016
Allerdale Borough Council,21100,Transfer Payments,Economic Regeneration,Budget-Grants Paid,29/03/2017,199521,"10,000.00",CUMBRIA CC - GENERAL,A00066,12 +13,2016
Allerdale Borough Council,14203,Transport,Members Services,Mileage Allowances - Car,22/03/2017,199522,3.20,Redacted information - included personal information ,M00260,12 +13,2016
Allerdale Borough Council,54105,Capital Expenditure,Disabled Facilities Grants,Grants  Private Individuals (Capital),22/03/2017,199523,"1,250.00",CONISTON CONSULTANTS LTD,X00210,12 +13,2016
Allerdale Borough Council,15101,Supplies & Services,Homelessness,Equipment Costs,22/03/2017,199524,43.62,ALLERDALE BOROUGH COUNCIL,X00034,12 +13,2016
Allerdale Borough Council,33118,Income,Off-street - Owned,Car Parks - Season Tickets Income,22/03/2017,199525,83.33,Redacted information - included personal information ,M01114,12 +13,2016
Allerdale Borough Council,54105,Capital Expenditure,Disabled Facilities Grants,Grants  Private Individuals (Capital),22/03/2017,199526,"1,957.00",PARTNERSHIP IN PROPERTY MANAGEMENT LTD,X00120,12 +13,2016
Allerdale Borough Council,54105,Capital Expenditure,Disabled Facilities Grants,Grants  Private Individuals (Capital),22/03/2017,199527,"3,325.00",BLUE FLAME SERVICES LTD,X00213,12 +13,2016
Allerdale Borough Council,15103,Supplies & Services,KMAG Enhancement Activity,Purchase of Materials,22/03/2017,199528,172.13,YORKSHIRE PURCHASING ORGANISATION,A00747,12 +13,2016
Allerdale Borough Council,15500,Supplies & Services,Emergency Planning,Budget-Services,22/03/2017,199529,70.04,MILLGATE COMPUTER SYSTEMS,A02314,12 +13,2016
Allerdale Borough Council,15300,Supplies & Services,Pest Control,Budget-Prov of Clothing and Equipment,22/03/2017,199530,158.45,KELTIC,A00017,12 +13,2016
Allerdale Borough Council,10605,Employee Costs,Benefits,Travel,22/03/2017,199531,39.24,ENTERPRISE RENT A CAR,A01367,12 +13,2016
Allerdale Borough Council,20301,Third Party Payments,Parks and Grounds Maintenance,Contract Services-Parks & Open Spaces,22/03/2017,199532,"54,739.75",ISS WATERERS LANDSCAPE,C00044,12 +13,2016
Allerdale Borough Council,12101,Premises,Planned Maintenance Buildings,External Maintenance & Decoration,22/03/2017,199533,"5,000.00",W HUGHES & SON LTD,C00160,12 +13,2016
Allerdale Borough Council,15101,Supplies & Services,Public Convenience Cleaning,Equipment Costs,22/03/2017,199534,918.20,INSTOCK (CHANDLERS),A00050,12 +13,2016
Allerdale Borough Council,14202,Transport,Chief Executive,Hire Car and petrol,22/03/2017,199535,68.63,ENTERPRISE RENT A CAR,A01367,12 +13,2016
Allerdale Borough Council,15506,Supplies & Services,Environmental Protection,Professional Services,29/03/2017,199536,66.70,UNITED UTILITIES PLC,A01657,12 +13,2016
Allerdale Borough Council,16001,Supplies & Services,Banking and Interest,Bank Charges and Fees,22/03/2017,199537,15.27,ALLPAY.NET LIMITED,A00714,12 +13,2016
Allerdale Borough Council,16001,Supplies & Services,Banking and Interest,Bank Charges and Fees,22/03/2017,199538,15.27,ALLPAY.NET LIMITED,A00714,12 +13,2016
Allerdale Borough Council,16001,Supplies & Services,Banking and Interest,Bank Charges and Fees,22/03/2017,199539,51.47,ALLPAY.NET LIMITED,A00714,12 +13,2016
Allerdale Borough Council,16001,Supplies & Services,Banking and Interest,Bank Charges and Fees,22/03/2017,199540,15.88,ALLPAY.NET LIMITED,A00714,12 +13,2016
Allerdale Borough Council,16001,Supplies & Services,Banking and Interest,Bank Charges and Fees,22/03/2017,199541,17.27,ALLPAY.NET LIMITED,A00714,12 +13,2016
Allerdale Borough Council,16001,Supplies & Services,Banking and Interest,Bank Charges and Fees,22/03/2017,199542,609.27,ALLPAY.NET LIMITED,A00714,12 +13,2016
Allerdale Borough Council,16001,Supplies & Services,Banking and Interest,Bank Charges and Fees,22/03/2017,199543,30.78,ALLPAY.NET LIMITED,A00714,12 +13,2016
Allerdale Borough Council,16001,Supplies & Services,Banking and Interest,Bank Charges and Fees,22/03/2017,199544,22.59,ALLPAY.NET LIMITED,A00714,12 +13,2016
Allerdale Borough Council,16001,Supplies & Services,Banking and Interest,Bank Charges and Fees,22/03/2017,199545,20.01,ALLPAY.NET LIMITED,A00714,12 +13,2016
Allerdale Borough Council,16001,Supplies & Services,Banking and Interest,Bank Charges and Fees,22/03/2017,199546,18.29,ALLPAY.NET LIMITED,A00714,12 +13,2016
Allerdale Borough Council,15101,Supplies & Services,New Ways of Working,Equipment Costs,29/03/2017,199547,"2,150.00",APM DESIGN LIMITED,A02374,12 +13,2016
Allerdale Borough Council,20305,Third Party Payments,Maryport Wave,Contract Services-Leisure Centres,22/03/2017,199548,"7,289.00",GREENWICH LEISURE LTD (PREV CARLISLE LEISURE),A00136,12 +13,2016
Allerdale Borough Council,20305,Third Party Payments,Sports & Leisure Centres,Contract Services-Leisure Centres,22/03/2017,199549,"47,748.00",GREENWICH LEISURE LTD (PREV CARLISLE LEISURE),A00136,12 +13,2016
Allerdale Borough Council,20300,Third Party Payments,Recycling,Budget-Contract Services,22/03/2017,199550,"368,368.17",FCC ENVIRONMENT SERVICES (FOCSA),A00085,12 +13,2016
Allerdale Borough Council,20150,Third Party Payments,Corporate Property Maintenance,General Partnership Service Fees,12/04/2017,199551,245.95,ORIAN SOLUTIONS LTD,A01814,12 +13,2016
Allerdale Borough Council,12302,Premises,Solway Coast AONB Core Funding,Building Cleaning,12/04/2017,199552,99.31,ORIAN SOLUTIONS LTD,A01814,12 +13,2016
Allerdale Borough Council,15904,Supplies & Services,Members Services,Training,05/04/2017,199553,"1,500.00",CIPFA,A00572,12 +13,2016
Allerdale Borough Council,15101,Supplies & Services,Public Convenience Cleaning,Equipment Costs,22/03/2017,199554,41.80,INSTOCK (CHANDLERS),A00050,12 +13,2016
Allerdale Borough Council,16102,Supplies & Services,Town Centre Management,Regeneration Initiatives,22/03/2017,199555,450.00,FIRPRESS PRINTERS,A00063,12 +13,2016
Allerdale Borough Council,15500,Supplies & Services,Revenue,Budget-Services,29/03/2017,199556,"7,389.12",CUMBRIA MAILING SERVICE,A00086,12 +13,2016
Allerdale Borough Council,15500,Supplies & Services,Revenue,Budget-Services,29/03/2017,199557,615.33,CUMBRIA MAILING SERVICE,A00086,12 +13,2016
Allerdale Borough Council,14202,Transport,Chief Executive,Hire Car and petrol,22/03/2017,199558,239.64,ENTERPRISE RENT A CAR,A01367,12 +13,2016
Allerdale Borough Council,12403,Premises,Homelessness,Gas,22/03/2017,199559,133.09,BRITISH GAS - PAYMENT AREA 55,X00040,12 +13,2016
Allerdale Borough Council,12501,Premises,Tenanted Properties,NNDR and Other Occupancy Charges,22/03/2017,199560,330.16,ALLERDALE,A00342,12 +13,2016
Allerdale Borough Council,12501,Premises,Tenanted Properties,NNDR and Other Occupancy Charges,22/03/2017,199561,428.31,ALLERDALE,A00342,12 +13,2016
Allerdale Borough Council,12501,Premises,Tenanted Properties,NNDR and Other Occupancy Charges,22/03/2017,199562,737.33,ALLERDALE,A00342,12 +13,2016
Allerdale Borough Council,15600,Supplies & Services,Benefits,Budget-Postal Services,22/03/2017,199563,"1,126.65",ROYAL MAIL LETTERS,X00021,12 +13,2016
Allerdale Borough Council,12403,Premises,Homelessness,Gas,22/03/2017,199564,31.01,BRITISH GAS ,X00040,12 +13,2016
Allerdale Borough Council,12403,Premises,Homelessness,Gas,22/03/2017,199565,101.99,BRITISH GAS,X00040,12 +13,2016
Allerdale Borough Council,15601,Supplies & Services,Revenue,Postage,22/03/2017,199566,300.00,ROYAL MAIL LETTERS,X00021,12 +13,2016
Allerdale Borough Council,12408,Premises,Corporate Property Maintenance,Water & Sewage,22/03/2017,199567,95.00,UNITED UTILITIES,X00011,12 +13,2016
Allerdale Borough Council,12408,Premises,Corporate Property Maintenance,Water & Sewage,22/03/2017,199568,11.75,UNITED UTILITIES,X00011,12 +13,2016
Allerdale Borough Council,12408,Premises,Public Convenience Cleaning,Water & Sewage,22/03/2017,199569,45.02,UNITED UTILITIES,X00011,12 +13,2016
Allerdale Borough Council,12402,Premises,Car Parks Inspection & Maintenance,Electricity,29/03/2017,199570,77.25,N POWER ,X00015,12 +13,2016
Allerdale Borough Council,12408,Premises,Corporate Property Maintenance,Water & Sewage,22/03/2017,199571,86.98,UNITED UTILITIES ,X00011,12 +13,2016
Allerdale Borough Council,12402,Premises,Homelessness,Electricity,22/03/2017,199572,0.98,BRITISH GAS ,X00040,12 +13,2016
Allerdale Borough Council,12403,Premises,Corporate Property Maintenance,Gas,22/03/2017,199573,75.04,TOTAL GAS & POWER LIMITED,X00253,12 +13,2016
Allerdale Borough Council,15500,Supplies & Services,Emergency Planning,Budget-Services,22/03/2017,199574,-17.50,MILLGATE COMPUTER SYSTEMS,A02314,12 +13,2016
Allerdale Borough Council,12402,Premises,Corporate Property Maintenance,Electricity,22/03/2017,199575,21.00,BES COMMERCIAL ELECTRICITY LTD,X00243,12 +13,2016
Allerdale Borough Council,34104,Income,Benefits,Rent Allowances Overpayments Income,22/03/2017,199576,14.59,ROSSENDALES LTD,A00964,12 +13,2016
Allerdale Borough Council,15100,Supplies & Services,Electoral Registration,"Budget-Equipment, Furniture & Materials",05/04/2017,199577,129.00,EQUIP4WORK LTD T/A OFFICE FURNITURE ONLINE,A01958,12 +13,2016
Allerdale Borough Council,15506,Supplies & Services,Sports Development,Professional Services,29/03/2017,199578,320.00,WRIGHTS SPORT SERVICES,A01482,12 +13,2016
Allerdale Borough Council,10401,Employee Costs,Shared IT Services Pay Group,Agency Staff Costs,22/03/2017,199579,379.48,ADECCO RECRUITMENT,A00188,12 +13,2016
Allerdale Borough Council,15500,Supplies & Services,Confidential Waste,Budget-Services,22/03/2017,199580,226.00,J DUFFY LTD T/A PW CONF BUS SERVICES,A01846,12 +13,2016
Allerdale Borough Council,15500,Supplies & Services,Confidential Waste,Budget-Services,22/03/2017,199581,261.00,J DUFFY LTD T/A PW CONF BUS SERVICES,A01846,12 +13,2016
Allerdale Borough Council,15103,Supplies & Services,Animal Welfare,Purchase of Materials,29/03/2017,199582,"1,052.50",PMC POLYTHENE LTD,A00194,12 +13,2016
Allerdale Borough Council,15100,Supplies & Services,Domestic Waste,"Budget-Equipment, Furniture & Materials",29/03/2017,199583,"2,422.00",FIRPRESS PRINTERS,A00063,12 +13,2016
Allerdale Borough Council,15102,Supplies & Services,Recycling,Equipment Repair & Maintenance,29/03/2017,199584,"1,465.00",Redacted information - included personal information ,A00176,12 +13,2016
Allerdale Borough Council,20101,Third Party Payments,Recycling,Cleansing Contract,29/03/2017,199585,226.21,CUMBRIA WASTE MANAGEMENT LTD,A01304,12 +13,2016
Allerdale Borough Council,21150,Transfer Payments,Festivals & Events,General Grants,29/03/2017,199586,100.00,KESWICK FILM CLUB,M01056,12 +13,2016
Allerdale Borough Council,50198,Capital Expenditure,Demolition of Moorclose Sports Centre,Site Clearance / Demolition (Capital),31/03/2017,199587,"2,428.39",BARCLAYCARD COMMERCIAL ,X00207,12 +13,2016
Allerdale Borough Council,15808,Supplies & Services,Multi-functional Printers,Computer Consumables,29/03/2017,199588,250.00,ANTALIS LIMITED,A00122,12 +13,2016
Allerdale Borough Council,15603,Supplies & Services,Document Management Pay Group,Franking Machine Costs,29/03/2017,199589,300.00,THE MAILING ROOM (TMR EXECUTIVE AGENCY LTD),A00733,12 +13,2016
Allerdale Borough Council,15513,Supplies & Services,Solway Wetlands Project,Subcontractors - General,29/03/2017,199590,"4,750.00",Redacted information - included personal information ,A02265,12 +13,2016
Allerdale Borough Council,10401,Employee Costs,Customer Services Pay Group,Agency Staff Costs,29/03/2017,199591,82.34,ADECCO RECRUITMENT,A00188,12 +13,2016
Allerdale Borough Council,53101,Capital Expenditure,New Leisure Facility,Purchase of Fixed Plant & Equip Capital,29/03/2017,199592,"299,522.28",GREENWICH LEISURE LTD (PREV CARLISLE LEISURE),A00136,12 +13,2016
Allerdale Borough Council,53101,Capital Expenditure,New Leisure Facility,Purchase of Fixed Plant & Equip Capital,29/03/2017,199593,"10,173.50",DYNAMIK SPORT SURFACES LTD,C00185,12 +13,2016
Allerdale Borough Council,15401,Supplies & Services,Document Management Pay Group,General Stationery,29/03/2017,199594,200.00,CITIZENS ADVICE BUREAU,A01181,12 +13,2016
Allerdale Borough Council,15101,Supplies & Services,Purchase of Equipment (Enveloper),Equipment Costs,30/03/2017,199595,"1,818.85",TWOFOLD LTD ,A00317,12 +13,2016
Allerdale Borough Council,51101,Capital Expenditure,New Leisure Facility,External Contractor Payments (Capital),29/03/2017,199596,"1,025.00",KNOWLES LIMITED,A02383,12 +13,2016
Allerdale Borough Council,10401,Employee Costs,Customer Services Pay Group,Agency Staff Costs,29/03/2017,199597,426.02,ADECCO RECRUITMENT,A00188,12 +13,2016
Allerdale Borough Council,15402,Supplies & Services,Multi-functional Printers,Photocopier Charges,12/04/2017,199598,"6,269.33",KONICA MINOLTA BUSINESS SOLUTIONS UK LTD,A01556,12 +13,2016
Allerdale Borough Council,15803,Supplies & Services,IT Costs (Allerdale Only),Hardware Purchase,19/04/2017,199599,"7,522.00",VOHKUS LIMITED,A02411,12 +13,2016
Allerdale Borough Council,16302,Supplies & Services,Sports Development,Room Hire,29/03/2017,199600,330.00,FELLVIEW PRIMARY SCHOOL,A02352,12 +13,2016
Allerdale Borough Council,12101,Premises,Car Parks Inspection & Maintenance,External Maintenance & Decoration,29/03/2017,199601,623.00,Redacted information - included personal information ,C00008,12 +13,2016
Allerdale Borough Council,15501,Supplies & Services,Homelessness,Consultants Fees,29/03/2017,199602,25.98,JAMES STREET GROUP PRACTICE,A00462,12 +13,2016
Allerdale Borough Council,10601,Employee Costs,Training,External Courses & Seminar Fees,29/03/2017,199603,400.00,CUMBRIA CC ,A00066,12 +13,2016
Allerdale Borough Council,16301,Supplies & Services,Sports Development,Reimbursement,29/03/2017,199604,750.00,GREENWICH LEISURE LTD (PREV CARLISLE LEISURE),A00136,12 +13,2016
Allerdale Borough Council,10401,Employee Costs,Building Control - Chargeable,Agency Staff Costs,29/03/2017,199605,"3,300.00",JAMES ANDREW RECRUITMENT SOLUTIONS LTD,A02339,12 +13,2016
Allerdale Borough Council,15810,Supplies & Services,IT Services,Software Licences,12/04/2017,199606,226.77,INSIGHT DIRECT (UK) LTD,A00054,12 +13,2016
Allerdale Borough Council,15513,Supplies & Services,Solway Wetlands Project,Subcontractors - General,29/03/2017,199607,"4,277.00",THE ROYAL SOCIETY FOR THE PROTECTION OF BIRDS,A01752,12 +13,2016
Allerdale Borough Council,10601,Employee Costs,Training,External Courses & Seminar Fees,29/03/2017,199608,399.00,ZURICH MUNICIPAL,A00429,12 +13,2016
Allerdale Borough Council,14105,Transport,Parking Services Pay Group,"Fuel, Lubricants & Consumables",27/03/2017,199609,253.23,BP OIL UK LTD ,X00022,12 +13,2016
Allerdale Borough Council,14105,Transport,Asset Management Pay Group,"Fuel, Lubricants & Consumables",27/03/2017,199610,405.14,BP OIL UK LTD ,X00022,12 +13,2016
Allerdale Borough Council,14105,Transport,Parking Services Pay Group,"Fuel, Lubricants & Consumables",27/03/2017,199611,345.06,BP OIL UK LTD ,X00022,12 +13,2016
Allerdale Borough Council,14105,Transport,Parking Services Pay Group,"Fuel, Lubricants & Consumables",27/03/2017,199612,636.86,BP OIL UK LTD ,X00022,12 +13,2016
Allerdale Borough Council,15505,Supplies & Services,Planning and Development,Licences,29/03/2017,199613,35.55,CENTREMAPS,A00512,12 +13,2016
Allerdale Borough Council,81608,Balance Sheet,General Fund,Legal Provisions,29/03/2017,199614,"57,111.40",THOMAS ARMSTRONG - CONSTRUCT,C00003,12 +13,2016
Allerdale Borough Council,15808,Supplies & Services,Multi-functional Printers,Computer Consumables,29/03/2017,199615,230.50,ANTALIS LIMITED,A00122,12 +13,2016
Allerdale Borough Council,10605,Employee Costs,Training,Travel,29/03/2017,199616,40.49,ENTERPRISE RENT A CAR,A01367,12 +13,2016
Allerdale Borough Council,15803,Supplies & Services,IT Costs (Allerdale Only),Hardware Purchase,29/03/2017,199617,42.23,INSIGHT DIRECT (UK) LTD,A00054,12 +13,2016
Allerdale Borough Council,16101,Supplies & Services,Planning and Development,Statutory Notices,29/03/2017,199618,467.46,CUMBRIAN NEWSPAPERS LIMITED,A00869,12 +13,2016
Allerdale Borough Council,16101,Supplies & Services,Planning and Development,Statutory Notices,29/03/2017,199619,318.92,CUMBRIAN NEWSPAPERS LIMITED,A00869,12 +13,2016
Allerdale Borough Council,15301,Supplies & Services,Parking Services Pay Group,Uniforms,29/03/2017,199620,"1,078.95",KELTIC,A00017,12 +13,2016
Allerdale Borough Council,15505,Supplies & Services,Planning and Development,Licences,29/03/2017,199621,46.07,CENTREMAPS,A00512,12 +13,2016
Allerdale Borough Council,15808,Supplies & Services,Document Management Pay Group,Computer Consumables,29/03/2017,199622,"1,758.90",BT PHONE BOOK,A00607,12 +13,2016
Allerdale Borough Council,15301,Supplies & Services,Parking Services Pay Group,Uniforms,05/04/2017,199623,68.45,KELTIC,A00017,12 +13,2016
Allerdale Borough Council,16101,Supplies & Services,Planning and Development,Statutory Notices,29/03/2017,199624,389.55,CUMBRIAN NEWSPAPERS LIMITED,A00869,12 +13,2016
Allerdale Borough Council,16101,Supplies & Services,Planning and Development,Statutory Notices,29/03/2017,199625,774.52,CUMBRIAN NEWSPAPERS LIMITED,A00869,12 +13,2016
Allerdale Borough Council,10605,Employee Costs,Training,Travel,29/03/2017,199626,72.80,ENTERPRISE RENT A CAR,A01367,12 +13,2016
Allerdale Borough Council,14101,Transport,Homelessness,Vehicle Leasing,29/03/2017,199627,515.22,DOBIES VAUXHALL,A00254,12 +13,2016
Allerdale Borough Council,10604,Employee Costs,Director of Resources & PA,Hire of Training Rooms/Venues,29/03/2017,199628,66.10,CARNEGIE WORKINGTON LTD,A02134,12 +13,2016
Allerdale Borough Council,14104,Transport,Public Convenience Cleaning,Repairs & Maintenance,29/03/2017,199629,362.93,FCC ENVIRONMENT SERVICES (FOCSA),A00085,12 +13,2016
Allerdale Borough Council,14202,Transport,Chief Executive,Hire Car and petrol,29/03/2017,199630,76.99,ENTERPRISE RENT A CAR,A01367,12 +13,2016
Allerdale Borough Council,15401,Supplies & Services,Building Control - Non-Chargeable,General Stationery,30/03/2017,199631,131.89,HEATONS OFFICE SOLUTION (PREV LAKELAND/INTEGRITY),A00069,12 +13,2016
Allerdale Borough Council,12501,Premises,Off-street - Owned,NNDR and Other Occupancy Charges,29/03/2017,199632,54.12,ALLERDALE ,A00342,12 +13,2016
Allerdale Borough Council,12501,Premises,Off-street - Owned,NNDR and Other Occupancy Charges,29/03/2017,199633,505.17,ALLERDALE ,A00342,12 +13,2016
Allerdale Borough Council,12501,Premises,Off-street - Owned,NNDR and Other Occupancy Charges,29/03/2017,199634,"1,479.43",ALLERDALE ,A00342,12 +13,2016
Allerdale Borough Council,12501,Premises,Off-street - Owned,NNDR and Other Occupancy Charges,29/03/2017,199635,63.25,ALLERDALE ,A00342,12 +13,2016
Allerdale Borough Council,15704,Supplies & Services,IT Services,Mobile Phones,29/03/2017,199636,769.77,VODAFONE ,A00551,12 +13,2016
Allerdale Borough Council,12403,Premises,Corporate Property Maintenance,Gas,29/03/2017,199637,"2,318.37",BRITISH GAS - PAYMENT AREA 60,X00039,12 +13,2016
Allerdale Borough Council,15804,Supplies & Services,IT Services,Computer Data Lines B.T.,,199638,"1,642.21",VODAFONE (PREV CABLE & WIRELESS),A00934,12 +13,2016
Allerdale Borough Council,12402,Premises,Corporate Property Maintenance,Electricity,29/03/2017,199639,"4,120.88",N POWER,X00015,12 +13,2016
Allerdale Borough Council,12402,Premises,Footways,Electricity,29/03/2017,199640,"4,583.54",N POWER ,X00015,12 +13,2016
Allerdale Borough Council,15702,Supplies & Services,Off-street - Owned,Line Rentals,29/03/2017,199641,559.35,COBALT TELEPHONE TECHNOLOGY,A01008,12 +13,2016
Allerdale Borough Council,10303,Employee Costs,Bereavement Services Pay Group,Pension Settlements,05/04/2017,199642,"5,280.65",YOUR PENSION SERVICE - PRESTON,A01465,12 +13,2016
Allerdale Borough Council,12402,Premises,Corporate Property Maintenance,Electricity,29/03/2017,199643,874.40,SOUTHERN ELECTRIC - PO BOX 17,X00018,12 +13,2016
Allerdale Borough Council,15301,Supplies & Services,Parking Services Pay Group,Uniforms,29/03/2017,199644,-103.70,KELTIC,A00017,12 +13,2016
Allerdale Borough Council,15401,Supplies & Services,Building Control - Non-Chargeable,General Stationery,30/03/2017,199645,-131.89,HEATONS OFFICE SOLUTION (PREV LAKELAND/INTEGRITY),A00069,12 +13,2016
Allerdale Borough Council,15402,Supplies & Services,Customer Services Pay Group,Photocopier Charges,31/03/2017,199646,-13.97,RICOH UK LTD,A00037,12 +13,2016
Allerdale Borough Council,15402,Supplies & Services,Customer Services Pay Group,Photocopier Charges,31/03/2017,199647,-14.13,RICOH UK LTD,A00037,12 +13,2016
Allerdale Borough Council,20150,Third Party Payments,Managed Car Parks,General Partnership Service Fees,28/03/2017,199648,"67,091.85",E H BOOTH & CO LIMITED,A00919,12 +13,2016
Allerdale Borough Council,12402,Premises,Homelessness,Electricity,29/03/2017,199649,12.13,BRITISH GAS ,X00040,12 +13,2016
Allerdale Borough Council,12403,Premises,Corporate Property Maintenance,Gas,29/03/2017,199650,6.80,BRITISH GAS,X00039,12 +13,2016
Allerdale Borough Council,12408,Premises,Public Convenience Cleaning,Water & Sewage,29/03/2017,199651,617.35,UNITED UTILITIES,X00011,12 +13,2016
Allerdale Borough Council,12408,Premises,Public Convenience Cleaning,Water & Sewage,29/03/2017,199652,308.37,UNITED UTILITIES ,X00011,12 +13,2016
Allerdale Borough Council,12402,Premises,Corporate Property Maintenance,Electricity,29/03/2017,199653,-23.99,N POWER,X00015,12 +13,2016
Allerdale Borough Council,12402,Premises,Public Convenience Cleaning,Electricity,29/03/2017,199654,-102.29,N POWER,X00015,12 +13,2016
Allerdale Borough Council,12402,Premises,Public Convenience Cleaning,Electricity,29/03/2017,199655,-197.82,N POWER,X00015,12 +13,2016
Allerdale Borough Council,12402,Premises,Public Convenience Cleaning,Electricity,29/03/2017,199656,-3.04,N POWER,X00015,12 +13,2016
Allerdale Borough Council,12402,Premises,Carnegie Trust Contribution,Electricity,29/03/2017,199657,-103.05,N POWER,X00015,12 +13,2016
Allerdale Borough Council,12402,Premises,Carnegie Trust Contribution,Electricity,29/03/2017,199658,-21.66,N POWER,X00015,12 +13,2016
Allerdale Borough Council,12402,Premises,Corporate Property Maintenance,Electricity,29/03/2017,199659,-10.87,N POWER,X00015,12 +13,2016
Allerdale Borough Council,12402,Premises,Corporate Property Maintenance,Electricity,29/03/2017,199660,10.25,N POWER,X00015,12 +13,2016
Allerdale Borough Council,12402,Premises,Corporate Property Maintenance,Electricity,29/03/2017,199661,16.04,N POWER,X00015,12 +13,2016
Allerdale Borough Council,12402,Premises,Public Convenience Cleaning,Electricity,29/03/2017,199662,26.16,N POWER,X00015,12 +13,2016
Allerdale Borough Council,12402,Premises,Public Convenience Cleaning,Electricity,29/03/2017,199663,206.76,N POWER,X00015,12 +13,2016
Allerdale Borough Council,12402,Premises,Public Convenience Cleaning,Electricity,29/03/2017,199664,0.45,N POWER,X00015,12 +13,2016
Allerdale Borough Council,12402,Premises,Public Convenience Cleaning,Electricity,29/03/2017,199665,305.75,N POWER,X00015,12 +13,2016
Allerdale Borough Council,12402,Premises,Carnegie Trust Contribution,Electricity,29/03/2017,199666,109.59,N POWER,X00015,12 +13,2016
Allerdale Borough Council,12402,Premises,Car Parks Inspection & Maintenance,Electricity,29/03/2017,199667,16.28,N POWER,X00015,12 +13,2016
Allerdale Borough Council,12402,Premises,Carnegie Trust Contribution,Electricity,29/03/2017,199668,23.66,N POWER,X00015,12 +13,2016
Allerdale Borough Council,12402,Premises,Public Convenience Cleaning,Electricity,29/03/2017,199669,6.09,N POWER,X00015,12 +13,2016
Allerdale Borough Council,12402,Premises,Corporate Property Maintenance,Electricity,29/03/2017,199670,11.35,N POWER,X00015,12 +13,2016
Allerdale Borough Council,15101,Supplies & Services,Corporate Property Maintenance,Equipment Costs,29/03/2017,199671,13.32,ALLERDALE BOROUGH COUNCIL,X00034,12 +13,2016
Allerdale Borough Council,15604,Supplies & Services,Document Management Pay Group,Franking Machine refills,29/03/2017,199672,658.35,UK MAIL GROUP PLC,A02371,12 +13,2016
Allerdale Borough Council,15604,Supplies & Services,Document Management Pay Group,Franking Machine refills,29/03/2017,199673,671.09,UK MAIL GROUP PLC,A02371,12 +13,2016
Allerdale Borough Council,15604,Supplies & Services,Document Management Pay Group,Franking Machine refills,29/03/2017,199674,741.53,UK MAIL GROUP PLC,A02371,12 +13,2016
Allerdale Borough Council,15604,Supplies & Services,Document Management Pay Group,Franking Machine refills,29/03/2017,199675,384.66,UK MAIL GROUP PLC,A02371,12 +13,2016
Allerdale Borough Council,20101,Third Party Payments,Recycling,Cleansing Contract,29/03/2017,199676,"21,948.65",CUMBRIA WASTE MANAGEMENT LTD,A01304,12 +13,2016
Allerdale Borough Council,20101,Third Party Payments,Recycling,Cleansing Contract,29/03/2017,199677,"26,076.53",CUMBRIA WASTE MANAGEMENT LTD,A01304,12 +13,2016
Allerdale Borough Council,15604,Supplies & Services,Document Management Pay Group,Franking Machine refills,05/04/2017,199678,626.81,UK MAIL GROUP PLC,A02371,12 +13,2016
Allerdale Borough Council,15810,Supplies & Services,Solway Wetlands Project,Software Licences,05/04/2017,199679,128.95,PHOENIX SOFTWARE LTD,A00229,12 +13,2016
Allerdale Borough Council,15604,Supplies & Services,Document Management Pay Group,Franking Machine refills,12/04/2017,199680,286.14,UK MAIL GROUP PLC,A02371,12 +13,2016
Allerdale Borough Council,15102,Supplies & Services,Off-street - Owned,Equipment Repair & Maintenance,29/03/2017,199681,989.67,METRIC GROUP LTD,A00568,12 +13,2016
Allerdale Borough Council,20101,Third Party Payments,Recycling,Cleansing Contract,29/03/2017,199682,"19,690.97",CUMBRIA WASTE MANAGEMENT LTD,A01304,12 +13,2016
Allerdale Borough Council,14100,Transport,Parking Services Pay Group,Budget-Council Vehicles (Non-capital),29/03/2017,199683,298.74,FCC ENVIRONMENT SERVICES (FOCSA),A00085,12 +13,2016
Allerdale Borough Council,12101,Premises,Corporate Property Maintenance,External Maintenance & Decoration,05/04/2017,199684,102.00,O'CONNELL & BEAN (MECH&ELEC) LTD,C00078,12 +13,2016
Allerdale Borough Council,15101,Supplies & Services,Homelessness,Equipment Costs,05/04/2017,199685,41.50,THE LAUNDRY STUDIO,A00225,12 +13,2016
Allerdale Borough Council,51101,Capital Expenditure,Demolition of Moorclose Sports Centre,External Contractor Payments (Capital),05/04/2017,199686,"2,744.80",JJ GROUP (CONTRACTING) LTD,C00038,12 +13,2016
Allerdale Borough Council,12405,Premises,Homelessness,Rentals and Lease Charges,,199687,125.00,CUMBERLAND HOTEL,A02415,12 +13,2016
Allerdale Borough Council,15103,Supplies & Services,Solway Wetlands Project,Purchase of Materials,29/03/2017,199688,288.92,WCF PET & EQUESTRIAN,A02275,12 +13,2016
Allerdale Borough Council,10601,Employee Costs,Training,External Courses & Seminar Fees,12/04/2017,199689,385.00,GOVNET COMMUNICATIONS,A00132,12 +13,2016
Allerdale Borough Council,15803,Supplies & Services,IT Costs (Allerdale Only),Hardware Purchase,19/04/2017,199690,595.60,VOHKUS LIMITED,A02411,12 +13,2016
Allerdale Borough Council,21150,Transfer Payments,Parks Development,General Grants,29/03/2017,199691,"1,320.00",LOVELL PARTNERSHIPS,M00973,12 +13,2016
Allerdale Borough Council,71108,Holding and Control Accounts,Collection Fund,Council Tax Refunds (Coll Fund Cont Acc),29/03/2017,199692,362.33,Redacted information - included personal information ,M01115,12 +13,2016
Allerdale Borough Council,21150,Transfer Payments,Festivals & Events,General Grants,29/03/2017,199693,"4,000.00",PAINT THE TOWN RED,A01539,12 +13,2016
Allerdale Borough Council,20150,Third Party Payments,Managed Car Parks,General Partnership Service Fees,29/03/2017,199694,"3,689.40",KESWICK CONVENTION TRUST,A02390,12 +13,2016
Allerdale Borough Council,15101,Supplies & Services,Finance and Accounting Pay Group,Equipment Costs,31/03/2017,199695,95.70,BARCLAYCARD COMMERCIAL,X00207,12 +13,2016
Allerdale Borough Council,14202,Transport,Director of Resources & PA,Hire Car and petrol,31/03/2017,199696,78.49,BARCLAYCARD COMMERCIAL,X00207,12 +13,2016
Allerdale Borough Council,14202,Transport,Chief Executive,Hire Car and petrol,31/03/2017,199697,58.68,BARCLAYCARD COMMERCIAL,X00207,12 +13,2016
Allerdale Borough Council,15103,Supplies & Services,New Leisure Facility,Purchase of Materials,29/03/2017,199698,93.93,ALLERDALE BOROUGH COUNCIL,X00034,12 +13,2016
Allerdale Borough Council,15502,Supplies & Services,Legal Services,Land Registry Fees,05/05/2017,199699,51.00,HM LAND REGISTRY,A00505,12 +13,2016
Allerdale Borough Council,15502,Supplies & Services,Legal Services,Land Registry Fees,05/05/2017,199700,37.00,HM LAND REGISTRY,A00505,12 +13,2016
Allerdale Borough Council,15502,Supplies & Services,Legal Services,Land Registry Fees,05/05/2017,199701,42.00,HM LAND REGISTRY ,A00505,12 +13,2016
Allerdale Borough Council,54105,Capital Expenditure,Disabled Facilities Grants,Grants  Private Individuals (Capital),29/03/2017,199702,"5,427.00",W W BUILDERS LIMITED,X00212,12 +13,2016
Allerdale Borough Council,54105,Capital Expenditure,Disabled Facilities Grants,Grants  Private Individuals (Capital),29/03/2017,199703,"9,209.00",JOSEPH RIDLEY BUILDERS LTD,X00124,12 +13,2016
Allerdale Borough Council,54105,Capital Expenditure,Disabled Facilities Grants,Grants  Private Individuals (Capital),29/03/2017,199704,"3,190.00",BLUE FLAME SERVICES LTD,X00213,12 +13,2016
Allerdale Borough Council,54105,Capital Expenditure,Disabled Facilities Grants,Grants  Private Individuals (Capital),29/03/2017,199705,"3,485.00",FEARON BUILDERS,C00069,12 +13,2016
Allerdale Borough Council,54105,Capital Expenditure,Disabled Facilities Grants,Grants  Private Individuals (Capital),29/03/2017,199706,"2,964.00",PARTNERSHIP IN PROPERTY MANAGEMENT LTD,X00120,12 +13,2016
Allerdale Borough Council,21150,Transfer Payments,Leisure Activities,General Grants,29/03/2017,199707,150.00,WORKINGTON BOWLING CLUB,M00876,12 +13,2016
Allerdale Borough Council,15506,Supplies & Services,Assistance - Housing Services,Professional Services,29/03/2017,199708,350.00,WHINBARROW DESIGN SERVICES,A00311,12 +13,2016
Allerdale Borough Council,15405,Supplies & Services,Recycling,Use of External Printers,29/03/2017,199709,130.00,FIRPRESS PRINTERS,A00063,12 +13,2016
Allerdale Borough Council,15405,Supplies & Services,Recycling,Use of External Printers,29/03/2017,199710,199.00,FIRPRESS PRINTERS,A00063,12 +13,2016
Allerdale Borough Council,15101,Supplies & Services,Recycling,Equipment Costs,29/03/2017,199711,"17,748.24",RPC BPI REFUSE,A00318,12 +13,2016
Allerdale Borough Council,15101,Supplies & Services,Domestic Waste,Equipment Costs,29/03/2017,199712,"1,584.00",STRAIGHT LTD,A01705,12 +13,2016
Allerdale Borough Council,15405,Supplies & Services,Recycling,Use of External Printers,29/03/2017,199713,120.00,FIRPRESS PRINTERS,A00063,12 +13,2016
Allerdale Borough Council,15506,Supplies & Services,Allerdale Options,Professional Services,29/03/2017,199714,"1,620.00",Redacted information - included personal information ,A00150,12 +13,2016
Allerdale Borough Council,15506,Supplies & Services,Sports Development,Professional Services,29/03/2017,199715,"1,970.85",WRIGHTS SPORT SERVICES,A01482,12 +13,2016
Allerdale Borough Council,12301,Premises,Corporate Property Maintenance,Security,05/04/2017,199716,434.72,CUMBRIAN SYSTEMS (WESTMORLAND SECURITY),C00062,12 +13,2016
Allerdale Borough Council,10110,Employee Costs,Housing & Health Pay Group,Salary Sacrifice,29/03/2017,199717,"2,730.41",TUSKERDIRECT LTD,A02186,12 +13,2016
Allerdale Borough Council,12408,Premises,Homelessness,Water & Sewage,29/03/2017,199718,252.49,UNITED UTILITIES,X00011,12 +13,2016
Allerdale Borough Council,12408,Premises,Homelessness,Water & Sewage,29/03/2017,199719,252.49,UNITED UTILITIES,X00011,12 +13,2016
Allerdale Borough Council,12408,Premises,Homelessness,Water & Sewage,29/03/2017,199720,252.49,UNITED UTILITIES,X00011,12 +13,2016
Allerdale Borough Council,12408,Premises,Homelessness,Water & Sewage,29/03/2017,199721,414.63,UNITED UTILITIES,X00011,12 +13,2016
Allerdale Borough Council,12408,Premises,Homelessness,Water & Sewage,29/03/2017,199722,341.40,UNITED UTILITIES,X00011,12 +13,2016
Allerdale Borough Council,15703,Supplies & Services,Shared ICT Costs,Call Charges,29/03/2017,199723,"1,266.02",BRITISH TELECOMMUNICATIONS,X00004,12 +13,2016
Allerdale Borough Council,12402,Premises,Public Convenience Cleaning,Electricity,29/03/2017,199724,30.08,N POWER,X00015,12 +13,2016
Allerdale Borough Council,12402,Premises,Public Convenience Cleaning,Electricity,29/03/2017,199725,-98.00,N POWER,X00015,12 +13,2016
Allerdale Borough Council,12402,Premises,Public Convenience Cleaning,Electricity,29/03/2017,199726,-10.34,N POWER,X00015,12 +13,2016
Allerdale Borough Council,12402,Premises,Public Convenience Cleaning,Electricity,29/03/2017,199727,-10.25,N POWER,X00015,12 +13,2016
Allerdale Borough Council,12402,Premises,Public Convenience Cleaning,Electricity,29/03/2017,199728,-10.12,N POWER,X00015,12 +13,2016
Allerdale Borough Council,12402,Premises,Public Convenience Cleaning,Electricity,29/03/2017,199729,22.78,N POWER,X00015,12 +13,2016
Allerdale Borough Council,12402,Premises,Public Convenience Cleaning,Electricity,29/03/2017,199730,22.68,N POWER,X00015,12 +13,2016
Allerdale Borough Council,12402,Premises,Public Convenience Cleaning,Electricity,29/03/2017,199731,24.54,N POWER,X00015,12 +13,2016
Allerdale Borough Council,12402,Premises,Corporate Property Maintenance,Electricity,29/03/2017,199732,10.80,N POWER,X00015,12 +13,2016
Allerdale Borough Council,12402,Premises,Public Convenience Cleaning,Electricity,29/03/2017,199733,28.13,N POWER,X00015,12 +13,2016
Allerdale Borough Council,12402,Premises,Corporate Property Maintenance,Electricity,29/03/2017,199734,186.49,N POWER,X00015,12 +13,2016
Allerdale Borough Council,12402,Premises,Corporate Property Maintenance,Electricity,29/03/2017,199735,126.78,N POWER,X00015,12 +13,2016
Allerdale Borough Council,15703,Supplies & Services,Shared ICT Costs,Call Charges,29/03/2017,199736,"1,365.02",BRITISH TELECOMMUNICATIONS,X00004,12 +13,2016
Allerdale Borough Council,12403,Premises,Homelessness,Gas,31/03/2017,199737,401.56,GAZPROM ENERGY,X00246,12 +13,2016
Allerdale Borough Council,15101,Supplies & Services,Solway Wetlands Project,Equipment Costs,30/03/2017,199738,840.00,ASHTEAD PLANT HIRE CO LTD,C00019,12 +13,2016
Allerdale Borough Council,12402,Premises,Corporate Property Maintenance,Electricity,29/03/2017,199739,20.14,BRITISH GAS,X00039,12 +13,2016
Allerdale Borough Council,15101,Supplies & Services,Solway Wetlands Project,Equipment Costs,30/03/2017,199740,-840.00,ASHTEAD PLANT HIRE CO LTD,C00019,12 +13,2016
Allerdale Borough Council,15101,Supplies & Services,Solway Wetlands Project,Equipment Costs,30/03/2017,199741,-899.00,ASHTEAD PLANT HIRE CO LTD,C00019,12 +13,2016
Allerdale Borough Council,15101,Supplies & Services,Solway Wetlands Project,Equipment Costs,30/03/2017,199742,899.00,ASHTEAD PLANT HIRE CO LTD,C00019,12 +13,2016
Allerdale Borough Council,15201,Supplies & Services,Leaders Services,Entertainment Of Visitors,31/03/2017,199743,208.56,BARCLAYCARD COMMERCIAL ,X00207,12 +13,2016
Allerdale Borough Council,15201,Supplies & Services,Leaders Services,Entertainment Of Visitors,31/03/2017,199744,98.04,BARCLAYCARD COMMERCIAL,X00207,12 +13,2016
Allerdale Borough Council,15302,Supplies & Services,Solway Coast AONB Core Funding,Protective Clothing,29/03/2017,199745,110.38,ALLERDALE BOROUGH COUNCIL - AONB,X00216,12 +13,2016
Allerdale Borough Council,16350,Supplies & Services,Leaders Portfolio,Miscellaneous Expenses,29/03/2017,199746,"3,000.00",SOUTH WORKINGTON YOUTH PARTNERSHIP,X00158,12 +13,2016
Allerdale Borough Council,16350,Supplies & Services,Leaders Portfolio,Miscellaneous Expenses,29/03/2017,199747,"2,433.39",FCC RECYCLING UK LTD WREN ACC,M00792,12 +13,2016
Allerdale Borough Council,16102,Supplies & Services,Social Impact Investment Fund,Regeneration Initiatives,29/03/2017,199748,"10,000.00",CUMBRIA EDUCATION TRUST,M01116,12 +13,2016
Allerdale Borough Council,16150,Supplies & Services,Maryport Shop Front Improvements,General Promotions,29/03/2017,199749,"1,800.00",Redacted information - included personal information ,M01117,12 +13,2016
Allerdale Borough Council,33112,Income,Building Control - Chargeable,Planning Fees Income,29/03/2017,199750,42.75,Redacted information - included personal information ,M01118,12 +13,2016
Allerdale Borough Council,16150,Supplies & Services,Maryport Shop Front Improvements,General Promotions,29/03/2017,199751,328.50,Redacted information - included personal information ,M01119,12 +13,2016
Allerdale Borough Council,15850,Supplies & Services,Solway Wetlands Project,General Computer Costs,31/03/2017,199752,129.62,BARCLAYCARD COMMERCIAL,X00207,12 +13,2016
Allerdale Borough Council,15401,Supplies & Services,Solway Coast AONB Core Funding,General Stationery,31/03/2017,199753,7.47,BARCLAYCARD COMMERCIAL,X00207,12 +13,2016
Allerdale Borough Council,15103,Supplies & Services,Solway Wetlands Project,Purchase of Materials,31/03/2017,199754,18.98,BARCLAYCARD COMMERCIAL,X00207,12 +13,2016
Allerdale Borough Council,15507,Supplies & Services,Land Charges Service,Searches,29/03/2017,199755,"1,360.00",CUMBRIA CC ,A00066,12 +13,2016
Allerdale Borough Council,15810,Supplies & Services,IT Services,Software Licences,05/04/2017,199756,"3,225.35",PHOENIX SOFTWARE LTD,A00229,12 +13,2016
Allerdale Borough Council,20150,Third Party Payments,Footway Lighting Scheme,General Partnership Service Fees,05/04/2017,199757,411.00,ELECTRICITY NORTH WEST LTD,A00471,12 +13,2016
Allerdale Borough Council,12103,Premises,Coastal Protection and Inland Flooding,Grounds Maintenance,29/03/2017,199758,256.00,ASHCROFT PLANT (CUMBRIA) LTD,C00018,12 +13,2016
Allerdale Borough Council,16350,Supplies & Services,Museums,Miscellaneous Expenses,29/03/2017,199759,668.16,MACS REMOVAL LTD,A00020,12 +13,2016
Allerdale Borough Council,15101,Supplies & Services,Bereavement Services,Equipment Costs,05/04/2017,199760,850.00,CUMBRIA HEADSTONES,A02358,12 +13,2016
Allerdale Borough Council,21303,Transfer Payments,Parish Councils,Parish Councils,30/03/2017,199761,"12,846.46",ABOVE DERWENT PC,X00042,12 +13,2016
Allerdale Borough Council,21303,Transfer Payments,Parish Councils,Parish Councils,30/03/2017,199762,"2,299.99",AIKTON P.C.,X00043,12 +13,2016
Allerdale Borough Council,21303,Transfer Payments,Parish Councils,Parish Councils,30/03/2017,199763,"5,217.99",OUGHTERSIDE & ALLERBY PC,X00044,12 +13,2016
Allerdale Borough Council,21303,Transfer Payments,Parish Councils,Parish Councils,30/03/2017,199764,"4,600.00",ALLHALLOWS P.C.,X00045,12 +13,2016
Allerdale Borough Council,21303,Transfer Payments,Parish Councils,Parish Councils,30/03/2017,199765,"5,111.88",ALLONBY P.C.,X00046,12 +13,2016
Allerdale Borough Council,21303,Transfer Payments,Parish Councils,Parish Councils,30/03/2017,199766,"31,500.01",ASPATRIA T.C.,X00047,12 +13,2016
Allerdale Borough Council,21303,Transfer Payments,Parish Councils,Parish Councils,30/03/2017,199767,"3,704.33",BASSENTHWAITE P.C.,X00048,12 +13,2016
Allerdale Borough Council,21303,Transfer Payments,Parish Councils,Parish Councils,30/03/2017,199768,"4,750.01",BLENNERHASSETT P.C.,X00050,12 +13,2016
Allerdale Borough Council,21303,Transfer Payments,Parish Councils,Parish Councils,30/03/2017,199769,"1,700.00",BLINDBOTHEL P.C.,X00051,12 +13,2016
Allerdale Borough Council,21303,Transfer Payments,Parish Councils,Parish Councils,30/03/2017,199770,"3,150.01",BLINDCRAKE P.C.,X00052,12 +13,2016
Allerdale Borough Council,21303,Transfer Payments,Parish Councils,Parish Councils,30/03/2017,199771,"2,500.01",BOLTONS P.C.,X00053,12 +13,2016
Allerdale Borough Council,21303,Transfer Payments,Parish Councils,Parish Councils,30/03/2017,199772,"3,457.43",BORROWDALE P.C.,X00054,12 +13,2016
Allerdale Borough Council,21303,Transfer Payments,Parish Councils,Parish Councils,30/03/2017,199773,"2,750.00",BOTHEL P.C.,X00055,12 +13,2016
Allerdale Borough Council,21303,Transfer Payments,Parish Councils,Parish Councils,30/03/2017,199774,"9,514.45",BOWNESS P.C.,X00056,12 +13,2016
Allerdale Borough Council,21303,Transfer Payments,Parish Councils,Parish Councils,30/03/2017,199775,"3,206.01",BRIDEKIRK P.C.,X00057,12 +13,2016
Allerdale Borough Council,21303,Transfer Payments,Parish Councils,Parish Councils,30/03/2017,199776,"4,999.50",BRIGHAM P.C.,X00058,12 +13,2016
Allerdale Borough Council,21303,Transfer Payments,Parish Councils,Parish Councils,30/03/2017,199777,"3,000.00",BROMFIELD P.C.,X00059,12 +13,2016
Allerdale Borough Council,21303,Transfer Payments,Parish Councils,Parish Councils,30/03/2017,199778,"7,687.21",BROUGHTON P.C.,X00060,12 +13,2016
Allerdale Borough Council,21303,Transfer Payments,Parish Councils,Parish Councils,30/03/2017,199779,"8,100.00",BROUGHTON MOOR P.C.,X00061,12 +13,2016
Allerdale Borough Council,21303,Transfer Payments,Parish Councils,Parish Councils,30/03/2017,199780,700.00,BUTTERMERE P.C.,X00062,12 +13,2016
Allerdale Borough Council,21303,Transfer Payments,Parish Councils,Parish Councils,30/03/2017,199781,"5,950.01",CALDBECK P.C.,X00063,12 +13,2016
Allerdale Borough Council,21303,Transfer Payments,Parish Councils,Parish Councils,30/03/2017,199782,777.69,CAMERTON P.C.,X00064,12 +13,2016
Allerdale Borough Council,21303,Transfer Payments,Parish Councils,Parish Councils,30/03/2017,199783,"96,581.83",COCKERMOUTH T.C.,X00065,12 +13,2016
Allerdale Borough Council,21303,Transfer Payments,Parish Councils,Parish Councils,30/03/2017,199784,"6,262.50",CROSSCANONBY P.C.,X00066,12 +13,2016
Allerdale Borough Council,21303,Transfer Payments,Parish Councils,Parish Councils,30/03/2017,199785,"7,150.01",DEAN P.C.,X00067,12 +13,2016
Allerdale Borough Council,21303,Transfer Payments,Parish Councils,Parish Councils,30/03/2017,199786,"14,250.01",DEARHAM P.C.,X00068,12 +13,2016
Allerdale Borough Council,21303,Transfer Payments,Parish Councils,Parish Councils,30/03/2017,199787,875.00,DUNDRAW P.C.,X00069,12 +13,2016
Allerdale Borough Council,21303,Transfer Payments,Parish Councils,Parish Councils,30/03/2017,199788,"2,338.28",EMBLETON P.C.,X00070,12 +13,2016
Allerdale Borough Council,21303,Transfer Payments,Parish Councils,Parish Councils,30/03/2017,199789,"4,300.01",GILCRUX P.C.,X00071,12 +13,2016
Allerdale Borough Council,21303,Transfer Payments,Parish Councils,Parish Councils,30/03/2017,199790,"5,346.40",GREAT CLIFTON P.C.,X00072,12 +13,2016
Allerdale Borough Council,21303,Transfer Payments,Parish Councils,Parish Councils,30/03/2017,199791,"6,000.00",GREYSOUTHERN P.C.,X00073,12 +13,2016
Allerdale Borough Council,21303,Transfer Payments,Parish Councils,Parish Councils,30/03/2017,199792,"2,050.01",HAYTON & MEALO P.C.,X00074,12 +13,2016
Allerdale Borough Council,21303,Transfer Payments,Parish Councils,Parish Councils,30/03/2017,199793,"6,285.13",HOLME ABBEY P.C.,X00075,12 +13,2016
Allerdale Borough Council,21303,Transfer Payments,Parish Councils,Parish Councils,30/03/2017,199794,"3,266.61",HOLME EAST WEAVER P.C.,X00076,12 +13,2016
Allerdale Borough Council,21303,Transfer Payments,Parish Councils,Parish Councils,30/03/2017,199795,"1,000.00",HOLME LOW P.C.,X00077,12 +13,2016
Allerdale Borough Council,21303,Transfer Payments,Parish Councils,Parish Councils,30/03/2017,199796,"2,499.99",HOLME ST CUTHBERT P.C.,X00078,12 +13,2016
Allerdale Borough Council,21303,Transfer Payments,Parish Councils,Parish Councils,30/03/2017,199797,"3,220.01",IREBY & ULDALE P.C.,X00079,12 +13,2016
Allerdale Borough Council,21303,Transfer Payments,Parish Councils,Parish Councils,30/03/2017,199798,"110,465.01",KESWICK T.C.,X00080,12 +13,2016
Allerdale Borough Council,21303,Transfer Payments,Parish Councils,Parish Councils,30/03/2017,199799,"3,778.74",KIRKBAMPTON P.C.,X00081,12 +13,2016
Allerdale Borough Council,21303,Transfer Payments,Parish Councils,Parish Councils,30/03/2017,199800,"4,929.58",KIRKBRIDE P.C.,X00082,12 +13,2016
Allerdale Borough Council,21303,Transfer Payments,Parish Councils,Parish Councils,30/03/2017,199801,"2,750.00",LITTLE CLIFTON P.C.,X00083,12 +13,2016
Allerdale Borough Council,21303,Transfer Payments,Parish Councils,Parish Councils,30/03/2017,199802,"2,750.01",LORTON P.C.,X00084,12 +13,2016
Allerdale Borough Council,21303,Transfer Payments,Parish Councils,Parish Councils,30/03/2017,199803,"1,225.00",LOWESWATER P.C.,X00085,12 +13,2016
Allerdale Borough Council,21303,Transfer Payments,Parish Councils,Parish Councils,30/03/2017,199804,"99,261.31",MARYPORT T.C.,X00086,12 +13,2016
Allerdale Borough Council,21303,Transfer Payments,Parish Councils,Parish Councils,30/03/2017,199805,"4,660.00",PAPCASTLE P.C.,X00087,12 +13,2016
Allerdale Borough Council,21303,Transfer Payments,Parish Councils,Parish Councils,30/03/2017,199806,"2,549.83",PLUMBLAND P.C.,X00088,12 +13,2016
Allerdale Borough Council,21303,Transfer Payments,Parish Councils,Parish Councils,30/03/2017,199807,"27,250.68",SEATON P.C.,X00089,12 +13,2016
Allerdale Borough Council,21303,Transfer Payments,Parish Councils,Parish Councils,30/03/2017,199808,"2,422.15",SEBERGHAM P.C.,X00090,12 +13,2016
Allerdale Borough Council,21303,Transfer Payments,Parish Councils,Parish Councils,30/03/2017,199809,287.99,SETMURTHY P.C.,X00091,12 +13,2016
Allerdale Borough Council,21303,Transfer Payments,Parish Councils,Parish Councils,30/03/2017,199810,"86,195.00",SILLOTH T.C.,X00092,12 +13,2016
Allerdale Borough Council,21303,Transfer Payments,Parish Councils,Parish Councils,30/03/2017,199811,"3,715.43",ST JOHNS P.C.,X00093,12 +13,2016
Allerdale Borough Council,21303,Transfer Payments,Parish Councils,Parish Councils,30/03/2017,199812,"11,034.73",THURSBY P.C.,X00094,12 +13,2016
Allerdale Borough Council,21303,Transfer Payments,Parish Councils,Parish Councils,30/03/2017,199813,"2,797.50",UNDERSKIDDAW P.C.,X00095,12 +13,2016
Allerdale Borough Council,21303,Transfer Payments,Parish Councils,Parish Councils,30/03/2017,199814,"1,796.50",WAVERTON P.C.,X00096,12 +13,2016
Allerdale Borough Council,21303,Transfer Payments,Parish Councils,Parish Councils,30/03/2017,199815,"2,459.46",WESTNEWTON P.C.,X00097,12 +13,2016
Allerdale Borough Council,21303,Transfer Payments,Parish Councils,Parish Councils,30/03/2017,199816,"3,249.99",WESTWARD P.C.,X00098,12 +13,2016
Allerdale Borough Council,21303,Transfer Payments,Parish Councils,Parish Councils,30/03/2017,199817,"96,035.00",WIGTON TOWN COUNCIL,X00099,12 +13,2016
Allerdale Borough Council,21303,Transfer Payments,Parish Councils,Parish Councils,30/03/2017,199818,"1,500.00",WINSCALES P.C.,X00100,12 +13,2016
Allerdale Borough Council,21303,Transfer Payments,Parish Councils,Parish Councils,30/03/2017,199819,"3,652.99",WOODSIDE P.C.,X00101,12 +13,2016
Allerdale Borough Council,21303,Transfer Payments,Parish Councils,Parish Councils,30/03/2017,199820,"226,975.29",WORKINGTON T.C.,X00102,12 +13,2016
Allerdale Borough Council,21303,Transfer Payments,Parish Councils,Parish Councils,30/03/2017,199821,494.59,WYTHOP P.C.,X00103,12 +13,2016
Allerdale Borough Council,21150,Transfer Payments,Leisure Activities,General Grants,30/03/2017,199822,"9,000.00",ASPATRIA RUFC LTD,M01120,12 +13,2016
Allerdale Borough Council,82202,,General Fund,Capital Grants Unapplied,29/03/2017,199823,"114,195.64",DECC,M01121,12 +13,2016
Allerdale Borough Council,15703,Supplies & Services,IT Services,Call Charges,31/03/2017,199824,162.98,BARCLAYCARD COMMERCIAL ,X00207,12 +13,2016
Allerdale Borough Council,15506,Supplies & Services,Communications,Professional Services,30/03/2017,199840,900.00,ELSWORTH COMMUNICATIONS,A01869,12 +13,2016
Allerdale Borough Council,16100,Supplies & Services,Communications and Marketing,Budget-Advertising and Promotions,30/03/2017,199841,100.00,CREATIVE COMMUNICATORS,A02407,12 +13,2016
Allerdale Borough Council,51101,Capital Expenditure,Car Parks,External Contractor Payments (Capital),30/03/2017,199842,"5,500.00",LONSDALE SETTLED ESTATES,A02109,12 +13,2016
Allerdale Borough Council,16300,Supplies & Services,Communications,Budget-Miscellaneous,19/04/2017,199843,"1,513.65",BIRCHAM DYSON BELL LLP,A02323,12 +13,2016
Allerdale Borough Council,10401,Employee Costs,Building Control - Chargeable,Agency Staff Costs,05/04/2017,199844,"3,300.00",JAMES ANDREW RECRUITMENT SOLUTIONS LTD,A02339,12 +13,2016
Allerdale Borough Council,20150,Third Party Payments,Footways,General Partnership Service Fees,26/04/2017,199845,926.00,ELECTRICITY NORTH WEST LTD,A00471,12 +13,2016
Allerdale Borough Council,20150,Third Party Payments,Footways,General Partnership Service Fees,26/04/2017,199846,926.00,ELECTRICITY NORTH WEST LTD,A00471,12 +13,2016
Allerdale Borough Council,12101,Premises,Corporate Property Maintenance,External Maintenance & Decoration,05/04/2017,199847,708.00,JOHN ELLIOTT LIMITED,C00023,12 +13,2016
Allerdale Borough Council,15101,Supplies & Services,Corporate Property Maintenance,Equipment Costs,31/03/2017,199848,170.94,EDMUNDSON ELECTRICAL LTD,A00304,12 +13,2016
Allerdale Borough Council,15501,Supplies & Services,Food and Occupational Health,Consultants Fees,31/03/2017,199849,800.00,JONATHAN B JACKSON LTD,A00874,12 +13,2016
Allerdale Borough Council,12103,Premises,Coastal Protection and Inland Flooding,Grounds Maintenance,05/04/2017,199850,"31,850.00",THOMAS ARMSTRONG ,C00003,12 +13,2016
Allerdale Borough Council,12101,Premises,Public Convenience Cleaning,External Maintenance & Decoration,30/03/2017,199851,"1,342.00",Redacted information - included personal information ,C00008,12 +13,2016
Allerdale Borough Council,12101,Premises,Corporate Property Maintenance,External Maintenance & Decoration,19/04/2017,199852,"3,414.48",CAPITA - PROPERTY & INFRASTRUCTURE,A00774,12 +13,2016
Allerdale Borough Council,12301,Premises,Corporate Property Maintenance,Security,05/04/2017,199853,86.00,CUMBRIAN SYSTEMS (WESTMORLAND SECURITY),C00062,12 +13,2016
Allerdale Borough Council,15507,Supplies & Services,Land Charges Service,Searches,05/04/2017,199854,"1,060.00",CUMBRIA CC,A00066,12 +13,2016
Allerdale Borough Council,16301,Supplies & Services,Sports Development,Reimbursement,30/03/2017,199855,"3,751.00",NETHERHALL SCHOOL,A00279,12 +13,2016
Allerdale Borough Council,15103,Supplies & Services,Food and Occupational Health,Purchase of Materials,05/04/2017,199856,238.00,COLOPHON PRINT & DESIGN LTD,A01661,12 +13,2016
Allerdale Borough Council,16150,Supplies & Services,"The Hub, Workington Town Centre",General Promotions,26/04/2017,199857,999.00,TOTAL COMPUTER NETWORKS LTD,A02378,12 +13,2016
Allerdale Borough Council,15808,Supplies & Services,IT Services,Computer Consumables,26/04/2017,199858,168.88,MISCO,A00125,12 +13,2016
Allerdale Borough Council,14203,Transport,Head of Development Services,Mileage Allowances - Car,31/03/2017,199859,53.44,BARCLAYCARD COMMERCIAL,X00207,12 +13,2016
Allerdale Borough Council,14203,Transport,Head of Development Services,Mileage Allowances - Car,31/03/2017,199860,20.00,BARCLAYCARD COMMERCIAL,X00207,12 +13,2016
Allerdale Borough Council,73102,Holding and Control Accounts,Capital Project Retentions,Holding Accounts General - Expenditure,26/04/2017,199861,"1,471.35",CAN GEOTECHNICAL LIMITED,C00179,12 +13,2016
Allerdale Borough Council,15811,Supplies & Services,Solway Wetlands Project,Software Maintenance,31/03/2017,199862,72.22,BARCLAYCARD COMMERCIAL ,X00207,12 +13,2016
Allerdale Borough Council,15405,Supplies & Services,Communications and Marketing,Use of External Printers,30/03/2017,199863,746.72,CUMBRIA MAILING SERVICE,A00086,12 +13,2016
Allerdale Borough Council,15201,Supplies & Services,Leaders Services,Entertainment Of Visitors,31/03/2017,199864,48.29,BARCLAYCARD COMMERCIAL,X00207,12 +13,2016
Allerdale Borough Council,15201,Supplies & Services,Leaders Services,Entertainment Of Visitors,31/03/2017,199865,126.47,BARCLAYCARD COMMERCIAL,X00207,12 +13,2016
Allerdale Borough Council,12402,Premises,Corporate Property Maintenance,Electricity,30/03/2017,199866,"-1,239.83",N POWER ,X00015,12 +13,2016
Allerdale Borough Council,12402,Premises,Corporate Property Maintenance,Electricity,30/03/2017,199867,"1,304.20",N POWER ,X00015,12 +13,2016
Allerdale Borough Council,15703,Supplies & Services,Silloth TIC,Call Charges,30/03/2017,199868,"1,449.37",BRITISH TELECOMMUNICATIONS,X00004,12 +13,2016
Allerdale Borough Council,15201,Supplies & Services,Chief Executive,Entertainment Of Visitors,31/03/2017,199869,234.58,BARCLAYCARD COMMERCIAL ,X00207,12 +13,2016
Allerdale Borough Council,15201,Supplies & Services,Leaders Services,Entertainment Of Visitors,31/03/2017,199870,74.61,BARCLAYCARD COMMERCIAL ,X00207,12 +13,2016
Allerdale Borough Council,15402,Supplies & Services,Customer Services Pay Group,Photocopier Charges,31/03/2017,199871,151.89,RICOH UK LTD,A00037,12 +13,2016
Allerdale Borough Council,15404,Supplies & Services,Legal Services,Reference Materials,31/03/2017,199872,280.83,SWEET & MAXWELL (THOMSON REUTERS),A00028,12 +13,2016
Allerdale Borough Council,15402,Supplies & Services,Customer Services Pay Group,Photocopier Charges,31/03/2017,199873,12.06,RICOH UK LTD,A00037,12 +13,2016
Allerdale Borough Council,15402,Supplies & Services,Customer Services Pay Group,Photocopier Charges,31/03/2017,199874,9.56,RICOH UK LTD,A00037,12 +13,2016
Allerdale Borough Council,15811,Supplies & Services,Parking Services Pay Group,Software Maintenance,31/03/2017,199875,106.43,RELIANCE HIGH-TECH LTD,C00123,12 +13,2016
Allerdale Borough Council,15402,Supplies & Services,Customer Services Pay Group,Photocopier Charges,31/03/2017,199876,5.14,RICOH UK LTD,A00037,12 +13,2016
Allerdale Borough Council,15811,Supplies & Services,Parking Services Pay Group,Software Maintenance,31/03/2017,199877,19.36,RELIANCE HIGH-TECH LTD,C00123,12 +13,2016
Allerdale Borough Council,15904,Supplies & Services,Members Services,Training,31/03/2017,199878,351.78,MCKANES PRINTERS,A01507,12 +13,2016
Allerdale Borough Council,10401,Employee Costs,Customer Services Pay Group,Agency Staff Costs,31/03/2017,199879,461.82,ADECCO RECRUITMENT,A00188,12 +13,2016
Allerdale Borough Council,12101,Premises,Parks and Grounds Maintenance,External Maintenance & Decoration,26/04/2017,199880,75.00,ISS WATERERS LANDSCAPE,C00044,12 +13,2016
Allerdale Borough Council,15203,Supplies & Services,Members Services,Catering Costs and Consumables,31/03/2017,199881,58.50,MAGGIES BAKERY,A01685,12 +13,2016
Allerdale Borough Council,15604,Supplies & Services,Document Management Pay Group,Franking Machine refills,19/04/2017,199882,"1,392.66",UK MAIL GROUP PLC,A02371,12 +13,2016
Allerdale Borough Council,15904,Supplies & Services,Members Services,Training,31/03/2017,199883,160.00,KEN ROUTLEDGE TRAVEL LTD,A00192,12 +13,2016
Allerdale Borough Council,15101,Supplies & Services,Workington Nature Partnership,Equipment Costs,05/04/2017,199884,100.00,MICHAELA CORRIE GRAPHIC DESIGN,A00513,12 +13,2016
Allerdale Borough Council,10401,Employee Costs,Customer Services Pay Group,Agency Staff Costs,05/04/2017,199885,461.82,ADECCO RECRUITMENT,A00188,12 +13,2016
Allerdale Borough Council,15506,Supplies & Services,Parks and Grounds Maintenance,Professional Services,26/04/2017,199886,"11,638.20",ISS WATERERS LANDSCAPE,C00044,12 +13,2016
Allerdale Borough Council,51101,Capital Expenditure,Demolition of Moorclose Sports Centre,External Contractor Payments (Capital),31/03/2017,199887,"1,934.00",ENGINEERING (BARB) PIPEWORKS,A00903,12 +13,2016
Allerdale Borough Council,15808,Supplies & Services,Multi-functional Printers,Computer Consumables,26/04/2017,199888,250.00,ANTALIS LIMITED,A00122,12 +13,2016
Allerdale Borough Council,10601,Employee Costs,Director of Resources & PA,External Courses & Seminar Fees,12/04/2017,199889,75.00,SUFFOLK COUNTY COUNCIL,A00980,12 +13,2016
Allerdale Borough Council,15500,Supplies & Services,Confidential Waste,Budget-Services,31/03/2017,199890,261.00,J DUFFY LTD T/A PW CONF BUS SERVICES,A01846,12 +13,2016
Allerdale Borough Council,15101,Supplies & Services,Domestic Waste,Equipment Costs,12/04/2017,199891,"5,922.40",A & C WEBER UK LIMITED,A02372,12 +13,2016
Allerdale Borough Council,15808,Supplies & Services,IT Costs (Allerdale Only),Computer Consumables,31/03/2017,199892,"1,225.50",BARCLAYCARD COMMERCIAL,X00207,12 +13,2016
Allerdale Borough Council,53101,Capital Expenditure,New Leisure Facility,Purchase of Fixed Plant & Equip Capital,31/03/2017,199893,243.70,BARCLAYCARD COMMERCIAL ,X00207,12 +13,2016
Allerdale Borough Council,33110,Income,Land Charges Service,Search & Enquiry Fees General Income,31/03/2017,199894,18.00,BROCKBANK SOLICITORS,A01761,12 +13,2016
Allerdale Borough Council,53101,Capital Expenditure,New Leisure Facility,Purchase of Fixed Plant & Equip Capital,31/03/2017,199895,167.49,NUMATIC INTERNATIONAL LTD,A02398,12 +13,2016
Allerdale Borough Council,15506,Supplies & Services,Parks and Grounds Maintenance,Professional Services,31/03/2017,199896,210.00,BEVAN BRITTAN LLP,A02181,12 +13,2016
Allerdale Borough Council,15501,Supplies & Services,Environmental Initiatives,Consultants Fees,31/03/2017,199897,"1,610.74",CONIBEAR DESIGN ASSOCIATES (CDA),A02347,12 +13,2016
Allerdale Borough Council,53101,Capital Expenditure,New Leisure Facility,Purchase of Fixed Plant & Equip Capital,31/03/2017,199898,124.16,NUMATIC INTERNATIONAL LTD,A02398,12 +13,2016
Allerdale Borough Council,15301,Supplies & Services,Parking Services Pay Group,Uniforms,31/03/2017,199899,309.42,ARCO LIMITED - HEAD OFFICE HULL,A00045,12 +13,2016
Allerdale Borough Council,15301,Supplies & Services,Parking Services Pay Group,Uniforms,31/03/2017,199900,10.55,ARCO LIMITED - HEAD OFFICE HULL,A00045,12 +13,2016
Allerdale Borough Council,53101,Capital Expenditure,New Leisure Facility,Purchase of Fixed Plant & Equip Capital,31/03/2017,199901,"1,203.67",NUMATIC INTERNATIONAL LTD,A02398,12 +13,2016
Allerdale Borough Council,15506,Supplies & Services,Parks and Grounds Maintenance,Professional Services,31/03/2017,199902,75.00,BEVAN BRITTAN LLP,A02181,12 +13,2016
Allerdale Borough Council,15550,Supplies & Services,Licensing Service,General-Service Related Fees,31/03/2017,199903,24.00,ORBIS PROTECT LTD (PREV SITEXORBIS LIMITED),A00679,12 +13,2016
Allerdale Borough Council,53101,Capital Expenditure,New Leisure Facility,Purchase of Fixed Plant & Equip Capital,31/03/2017,199904,249.45,NUMATIC INTERNATIONAL LTD,A02398,12 +13,2016
Allerdale Borough Council,15401,Supplies & Services,Finance and Accounting Pay Group,General Stationery,31/03/2017,199905,165.14,POSTURITE (UK) LTD,A00336,12 +13,2016
Allerdale Borough Council,14100,Transport,Parking Services Pay Group,Budget-Council Vehicles (Non-capital),31/03/2017,199906,65.58,MICHELDEVER TYRE SERVICES T/A P&R AUTOCENTRE,A02368,12 +13,2016
Allerdale Borough Council,53101,Capital Expenditure,New Leisure Facility,Purchase of Fixed Plant & Equip Capital,12/04/2017,199907,"1,768.67",NUMATIC INTERNATIONAL LTD,A02398,12 +13,2016
Allerdale Borough Council,15203,Supplies & Services,Members Services,Catering Costs and Consumables,19/04/2017,199908,319.30,KENT AND SUSSEX VENDING,A02127,12 +13,2016
Allerdale Borough Council,10401,Employee Costs,Environmental Services Pay Group,Agency Staff Costs,19/04/2017,199909,"2,120.00",PRACTICUS LTD,A02237,12 +13,2016
Allerdale Borough Council,12301,Premises,Corporate Property Maintenance,Security,31/03/2017,199910,150.00,PROTEC SYSTEMS,C00026,12 +13,2016
Allerdale Borough Council,12301,Premises,Corporate Property Maintenance,Security,31/03/2017,199911,745.18,PROTEC SYSTEMS,C00026,12 +13,2016
Allerdale Borough Council,15904,Supplies & Services,Members Services,Training,19/04/2017,199912,"1,000.00",EFFECTIVE TRAINING & DEVELOPMENT,A00394,12 +13,2016
Allerdale Borough Council,10401,Employee Costs,Environmental Services Pay Group,Agency Staff Costs,26/04/2017,199913,"2,120.00",PRACTICUS LTD,A02237,12 +13,2016
Allerdale Borough Council,15501,Supplies & Services,Parks and Grounds Maintenance,Consultants Fees,05/04/2017,199914,192.50,Redacted information - included personal information ,A02110,12 +13,2016
Allerdale Borough Council,15301,Supplies & Services,Parking Services Pay Group,Uniforms,19/04/2017,199915,788.65,KELTIC,A00017,12 +13,2016
Allerdale Borough Council,14202,Transport,Asset Management Pay Group,Hire Car and petrol,31/03/2017,199916,43.15,ENTERPRISE RENT A CAR,A01367,12 +13,2016
Allerdale Borough Council,20150,Third Party Payments,Footways,General Partnership Service Fees,05/04/2017,199917,"4,442.63",CUMBRIA CC ,A00066,12 +13,2016
Allerdale Borough Council,12101,Premises,Car Parks Inspection & Maintenance,External Maintenance & Decoration,05/04/2017,199918,"2,200.00",GORDON GRAHAM ROADMARKINGS LTD,C00165,12 +13,2016
Allerdale Borough Council,14202,Transport,Chief Executive,Hire Car and petrol,05/04/2017,199919,64.54,ENTERPRISE RENT A CAR,A01367,12 +13,2016
Allerdale Borough Council,20101,Third Party Payments,Recycling,Cleansing Contract,19/04/2017,199920,-263.33,CUMBRIA WASTE MANAGEMENT LTD,A01304,12 +13,2016
Allerdale Borough Council,15604,Supplies & Services,Document Management Pay Group,Franking Machine refills,05/04/2017,199921,-14.16,ROYAL MAIL LETTERS,X00021,12 +13,2016
Allerdale Borough Council,12403,Premises,Homelessness,Gas,31/03/2017,199922,148.90,GAZPROM ENERGY,X00246,12 +13,2016
Allerdale Borough Council,20150,Third Party Payments,Managed Car Parks,General Partnership Service Fees,31/03/2017,199923,"34,510.30",PARKSAFE,A00647,12 +13,2016
Allerdale Borough Council,20101,Third Party Payments,Recycling,Cleansing Contract,19/04/2017,199924,-436.19,CUMBRIA WASTE MANAGEMENT LTD,A01304,12 +13,2016
Allerdale Borough Council,20150,Third Party Payments,Managed Car Parks,General Partnership Service Fees,31/03/2017,199925,"38,835.50",PARKSAFE,A00647,12 +13,2016
Allerdale Borough Council,12403,Premises,Homelessness,Gas,31/03/2017,199926,97.41,GAZPROM ENERGY,X00246,12 +13,2016
Allerdale Borough Council,15702,Supplies & Services,Street Cleansing,Line Rentals,31/03/2017,199927,96.42,BRITISH TELECOMMUNICATIONS,X00004,12 +13,2016
Allerdale Borough Council,15101,Supplies & Services,Solway Wetlands Project,Equipment Costs,31/03/2017,199928,100.00,ASHTEAD PLANT HIRE CO LTD,C00019,12 +13,2016
Allerdale Borough Council,15101,Supplies & Services,Solway Wetlands Project,Equipment Costs,31/03/2017,199929,35.00,ASHTEAD PLANT HIRE CO LTD,C00019,12 +13,2016
Allerdale Borough Council,12403,Premises,Homelessness,Gas,31/03/2017,199930,343.74,GAZPROM ENERGY,X00246,12 +13,2016
Allerdale Borough Council,12403,Premises,Homelessness,Gas,31/03/2017,199931,-416.77,GAZPROM ENERGY,X00246,12 +13,2016
Allerdale Borough Council,12403,Premises,Homelessness,Gas,31/03/2017,199932,-148.90,GAZPROM ENERGY,X00246,12 +13,2016
Allerdale Borough Council,12403,Premises,Homelessness,Gas,31/03/2017,199933,-97.41,GAZPROM ENERGY,X00246,12 +13,2016
Allerdale Borough Council,12408,Premises,Corporate Property Maintenance,Water & Sewage,31/03/2017,199934,144.18,UNITED UTILITIES ,X00011,12 +13,2016
Allerdale Borough Council,12403,Premises,Corporate Property Maintenance,Gas,31/03/2017,199935,"1,709.68",BRITISH GAS ,X00039,12 +13,2016
Allerdale Borough Council,15704,Supplies & Services,IT Services,Mobile Phones,31/03/2017,199936,768.73,VODAFONE ,A00551,12 +13,2016
Allerdale Borough Council,34104,Income,Benefits,Rent Allowances Overpayments Income,19/04/2017,199937,5.85,ROSSENDALES LTD,A00964,12 +13,2016
Allerdale Borough Council,53101,Capital Expenditure,New Leisure Facility,Purchase of Fixed Plant & Equip Capital,31/03/2017,199938,250.16,BARCLAYCARD COMMERCIAL,X00207,12 +13,2016
Allerdale Borough Council,15808,Supplies & Services,IT Services,Computer Consumables,31/03/2017,199939,26.88,MILLGATE COMPUTER SYSTEMS,A02314,12 +13,2016
Allerdale Borough Council,15303,Supplies & Services,Food and Occupational Health,Laundry,05/04/2017,199940,26.00,THE LAUNDRY STUDIO,A00225,12 +13,2016
Allerdale Borough Council,10401,Employee Costs,Housing & Health Pay Group,Agency Staff Costs,19/04/2017,199941,242.00,HAYS SPECIALIST RECRUITMENT LTD,A00280,12 +13,2016
Allerdale Borough Council,15506,Supplies & Services,Banking and Interest,Professional Services,31/03/2017,199942,780.00,CUMBRIA CC,A00066,12 +13,2016
Allerdale Borough Council,10401,Employee Costs,Housing & Health Pay Group,Agency Staff Costs,26/04/2017,199943,242.00,HAYS SPECIALIST RECRUITMENT LTD,A00280,12 +13,2016
Allerdale Borough Council,53101,Capital Expenditure,New Leisure Facility,Purchase of Fixed Plant & Equip Capital,31/03/2017,199944,398.68,NUMATIC INTERNATIONAL LTD,A02398,12 +13,2016
Allerdale Borough Council,12408,Premises,Homelessness,Water & Sewage,31/03/2017,199945,252.49,UNITED UTILITIES ,X00011,12 +13,2016
Allerdale Borough Council,14105,Transport,Parking Services Pay Group,"Fuel, Lubricants & Consumables",,199946,366.34,BP OIL UK LTD,X00022,12 +13,2016
Allerdale Borough Council,14105,Transport,Shared IT Services Pay Group,"Fuel, Lubricants & Consumables",,199947,369.94,BP OIL UK LTD,X00022,12 +13,2016
Allerdale Borough Council,14105,Transport,Parking Services Pay Group,"Fuel, Lubricants & Consumables",31/03/2017,199948,421.37,BP OIL UK LTD,X00022,12 +13,2016
Allerdale Borough Council,14105,Transport,Parking Services Pay Group,"Fuel, Lubricants & Consumables",,199949,371.91,BP OIL UK LTD,X00022,12 +13,2016
Allerdale Borough Council,14105,Transport,Parking Services Pay Group,"Fuel, Lubricants & Consumables",,199950,379.07,BP OIL UK LTD,X00022,12 +13,2016
Allerdale Borough Council,14105,Transport,Parking Services Pay Group,"Fuel, Lubricants & Consumables",,199951,446.36,BP OIL UK LTD,X00022,12 +13,2016
Allerdale Borough Council,14105,Transport,Asset Management Pay Group,"Fuel, Lubricants & Consumables",31/03/2017,199952,185.57,BP OIL UK LTD,X00022,12 +13,2016
Allerdale Borough Council,14105,Transport,Parking Services Pay Group,"Fuel, Lubricants & Consumables",31/03/2017,199953,523.91,BP OIL UK LTD,X00022,12 +13,2016
Allerdale Borough Council,14105,Transport,Parking Services Pay Group,"Fuel, Lubricants & Consumables",31/03/2017,199954,288.79,BP OIL UK LTD,X00022,12 +13,2016
Allerdale Borough Council,10501,Employee Costs,Human Resources Pay Group,Advertising Vacancies,31/03/2017,199955,645.48,BARCLAYCARD COMMERCIAL,X00207,12 +13,2016
Allerdale Borough Council,15512,Supplies & Services,Animal Welfare,Kennelling,05/04/2017,199956,"8,000.00",WHINMILL FARM CANINE CENTRE,A00117,12 +13,2016
Allerdale Borough Council,15811,Supplies & Services,Shared ICT Costs,Software Maintenance,31/03/2017,199957,"1,738.60",BARCLAYCARD COMMERCIAL,X00207,12 +13,2016
Allerdale Borough Council,75103,Holding and Control Accounts,Payroll Suspense Account,PAYROLL March 17 Travel & Subsistence  ,,,"14,752.78",INLAND REVENUE,X00038,12+13,2016
